Body,Body Name,Date,Transaction Number,Invoice Number,Amount,Supplier Name,Supplier ID ,VAT Registration Number ,Expense Area,Expense Type,Expense Code,Purchase Order
http://statistics.data.gov.uk/id/local-authority/29UP,Tonbridge & Malling Borough Council,6/6/2023,0041035561/1,41035561, 220.00,REDACTED PERSONAL DATA,01901300,,Temporary Accommodation,Ukrainian Refugee Assistance,D54UA000044051,
http://statistics.data.gov.uk/id/local-authority/29UP,Tonbridge & Malling Borough Council,6/6/2023,0041035562/1,41035562, 356.23,REDACTED PERSONAL DATA,01078600,,Polling Fees,Conduct of Elections,D31MG000044067,
http://statistics.data.gov.uk/id/local-authority/29UP,Tonbridge & Malling Borough Council,6/6/2023,0041035563/1,41035563, 170.66,REDACTED PERSONAL DATA,01901400,,Polling Fees,Conduct of Elections,D31MG000044067,
http://statistics.data.gov.uk/id/local-authority/29UP,Tonbridge & Malling Borough Council,6/6/2023,0041035564/1,41035564, 318.88,REDACTED PERSONAL DATA,01089100,,Polling Fees,Conduct of Elections,D31MG000044067,
http://statistics.data.gov.uk/id/local-authority/29UP,Tonbridge & Malling Borough Council,6/6/2023,0041035565/1,41035565, 2581.59,WorldPay ,01568000,,Credit Card Commission,Banking Arrangements,D43QK000044082,
http://statistics.data.gov.uk/id/local-authority/29UP,Tonbridge & Malling Borough Council,6/6/2023,0041035565/2,41035565, 318.50,WorldPay ,01568000,,Credit Card Commission,Banking Arrangements,D43QK000044082,
http://statistics.data.gov.uk/id/local-authority/29UP,Tonbridge & Malling Borough Council,6/6/2023,0041035566/1,41035566, 15.00,WorldPay ,01568000,,Credit Card Commission,Banking Arrangements,D43QK000044082,
http://statistics.data.gov.uk/id/local-authority/29UP,Tonbridge & Malling Borough Council,6/6/2023,0041035567/1,41035567, 887.96,WorldPay ,01568000,,Credit Card Commission,Banking Arrangements,D43QK000044082,
http://statistics.data.gov.uk/id/local-authority/29UP,Tonbridge & Malling Borough Council,6/6/2023,0041035568/1,41035568, 104.00,WorldPay ,01568000,,Credit Card Commission,Banking Arrangements,D43QK000044082,
http://statistics.data.gov.uk/id/local-authority/29UP,Tonbridge & Malling Borough Council,6/7/2023,0011046229/1,11046229, 330.00,The Oast Theatre,01272100,,Rents,Conduct of Elections,D31MG000022001,
http://statistics.data.gov.uk/id/local-authority/29UP,Tonbridge & Malling Borough Council,6/7/2023,0012008749/1,12008749, 3633.36,Park Place Technologies Ltd,01809800,336276491,Maintenance - Ancillary Equip,Information Technology,D27KD000040137,410032417
http://statistics.data.gov.uk/id/local-authority/29UP,Tonbridge & Malling Borough Council,6/7/2023,0012008750/1,12008750, 149.90,CCS Media Ltd,00018000,,Purchases,Information Technology,D27KD000040101,410032418
http://statistics.data.gov.uk/id/local-authority/29UP,Tonbridge & Malling Borough Council,6/7/2023,0012008751/1,12008751, 307.93,CCS Media Ltd,00018000,,Purchases,Information Technology,D27KD000040101,410032418
http://statistics.data.gov.uk/id/local-authority/29UP,Tonbridge & Malling Borough Council,6/7/2023,0012008751/2,12008751, 119.97,CCS Media Ltd,00018000,,Purchases,Information Technology,D27KD000040101,410032418
http://statistics.data.gov.uk/id/local-authority/29UP,Tonbridge & Malling Borough Council,6/7/2023,0012008751/3,12008751, 9.95,CCS Media Ltd,00018000,,Delivery Expenses,Information Technology,D27KD000044069,410032418
http://statistics.data.gov.uk/id/local-authority/29UP,Tonbridge & Malling Borough Council,6/7/2023,0012008752/1,12008752, 149.90,CCS Media Ltd,00018000,,Purchases,Information Technology,D27KD000040101,410032418
http://statistics.data.gov.uk/id/local-authority/29UP,Tonbridge & Malling Borough Council,6/7/2023,0012008753/1,12008753, 17.17,Esendex Limited,01008900,,Leased Lines & Modems,Information Technology,D27KD000045011,
http://statistics.data.gov.uk/id/local-authority/29UP,Tonbridge & Malling Borough Council,6/7/2023,0012008754/1,12008754, 9.68,Daisy Communications,01068100,,Telephones - Rentals,General Admin Telephones,D24GT000045005,
http://statistics.data.gov.uk/id/local-authority/29UP,Tonbridge & Malling Borough Council,6/7/2023,0012008754/2,12008754, 285.76,Daisy Communications,01068100,,Telephones - Call Costs,General Admin Telephones,D24GT000045006,
http://statistics.data.gov.uk/id/local-authority/29UP,Tonbridge & Malling Borough Council,6/7/2023,0012008754/3,12008754, 95.92,Daisy Communications,01068100,,Leased Lines & Modems,Information Technology,D27KD000045011,
http://statistics.data.gov.uk/id/local-authority/29UP,Tonbridge & Malling Borough Council,6/7/2023,0012008754/4,12008754, 74.46,Daisy Communications,01068100,,Maintenance - General,Security Services Management,E09GA000040135,
http://statistics.data.gov.uk/id/local-authority/29UP,Tonbridge & Malling Borough Council,6/7/2023,0012008755/1,12008755, 1728.86,NTT Cloud Communications UK Ltd,01794600,,Software Hire & Support,Information Technology,D27KD000044059,
http://statistics.data.gov.uk/id/local-authority/29UP,Tonbridge & Malling Borough Council,6/7/2023,0021038591/1,21038591, 23754.66,Landscape Services Ltd,00057600,,Grounds Maintenance Contract,Sports Grounds,B13ET000050103,
http://statistics.data.gov.uk/id/local-authority/29UP,Tonbridge & Malling Borough Council,6/7/2023,0021038591/10,21038591, 190.43,Landscape Services Ltd,00057600,,Grounds Maintenance Contract,Churchyards St Stephens,B28MY000050103,
http://statistics.data.gov.uk/id/local-authority/29UP,Tonbridge & Malling Borough Council,6/7/2023,0021038591/11,21038591, 191.95,Landscape Services Ltd,00057600,,Grounds Maintenance Contract,Grounds,D21FF000050103,
http://statistics.data.gov.uk/id/local-authority/29UP,Tonbridge & Malling Borough Council,6/7/2023,0021038591/12,21038591, 364.05,Landscape Services Ltd,00057600,,Maintenance of Grounds,Parking Off-Street,E10HA000020402,
http://statistics.data.gov.uk/id/local-authority/29UP,Tonbridge & Malling Borough Council,6/7/2023,0021038591/13,21038591, 1148.71,Landscape Services Ltd,00057600,,Maintenance of Grounds,Parking Off-Street,E10HAE00120402,
http://statistics.data.gov.uk/id/local-authority/29UP,Tonbridge & Malling Borough Council,6/7/2023,0021038591/14,21038591, 108.41,Landscape Services Ltd,00057600,,Maintenance of Grounds,Parking Off-Street,E10HAE00220402,
http://statistics.data.gov.uk/id/local-authority/29UP,Tonbridge & Malling Borough Council,6/7/2023,0021038591/15,21038591, 98.31,Landscape Services Ltd,00057600,,Maintenance of Grounds,Parking Off-Street,E10HAE00320402,
http://statistics.data.gov.uk/id/local-authority/29UP,Tonbridge & Malling Borough Council,6/7/2023,0021038591/16,21038591, 24.52,Landscape Services Ltd,00057600,,Maintenance of Grounds,Parking Off-Street,E10HAE00420402,
http://statistics.data.gov.uk/id/local-authority/29UP,Tonbridge & Malling Borough Council,6/7/2023,0021038591/17,21038591, 0.63,Landscape Services Ltd,00057600,,Maintenance of Grounds,Parking Off-Street,E10HAE00520402,
http://statistics.data.gov.uk/id/local-authority/29UP,Tonbridge & Malling Borough Council,6/7/2023,0021038591/18,21038591, 68.63,Landscape Services Ltd,00057600,,Maintenance of Grounds,Parking Off-Street,E10HAE00620402,
http://statistics.data.gov.uk/id/local-authority/29UP,Tonbridge & Malling Borough Council,6/7/2023,0021038591/19,21038591, 160.24,Landscape Services Ltd,00057600,,Maintenance of Grounds,Parking Off-Street,E10HAE01020402,
http://statistics.data.gov.uk/id/local-authority/29UP,Tonbridge & Malling Borough Council,6/7/2023,0021038591/2,21038591, 8238.89,Landscape Services Ltd,00057600,,Grounds Maintenance Contract,Tonbridge Castle Grounds,B22LB000050103,
http://statistics.data.gov.uk/id/local-authority/29UP,Tonbridge & Malling Borough Council,6/7/2023,0021038591/20,21038591, 3.55,Landscape Services Ltd,00057600,,Maintenance of Grounds,Parking Off-Street,E10HAE01220402,
http://statistics.data.gov.uk/id/local-authority/29UP,Tonbridge & Malling Borough Council,6/7/2023,0021038591/21,21038591, 7.83,Landscape Services Ltd,00057600,,Maintenance of Grounds,Parking Off-Street,E10HAE01320402,
http://statistics.data.gov.uk/id/local-authority/29UP,Tonbridge & Malling Borough Council,6/7/2023,0021038591/22,21038591, 32.60,Landscape Services Ltd,00057600,,Maintenance of Grounds,Parking Off-Street,E10HAE01520402,
http://statistics.data.gov.uk/id/local-authority/29UP,Tonbridge & Malling Borough Council,6/7/2023,0021038591/23,21038591, 63.69,Landscape Services Ltd,00057600,,Maintenance of Grounds,Parking Off-Street,E10HAE01620402,
http://statistics.data.gov.uk/id/local-authority/29UP,Tonbridge & Malling Borough Council,6/7/2023,0021038591/24,21038591, 25.88,Landscape Services Ltd,00057600,,Maintenance of Grounds,Parking Off-Street,E10HAE01720402,
http://statistics.data.gov.uk/id/local-authority/29UP,Tonbridge & Malling Borough Council,6/7/2023,0021038591/25,21038591, 15.90,Landscape Services Ltd,00057600,,Maintenance of Grounds,Parking Off-Street,E10HAE02120402,
http://statistics.data.gov.uk/id/local-authority/29UP,Tonbridge & Malling Borough Council,6/7/2023,0021038591/26,21038591, 25.32,Landscape Services Ltd,00057600,,Maintenance of Grounds,Parking Off-Street,E10HAE02320402,
http://statistics.data.gov.uk/id/local-authority/29UP,Tonbridge & Malling Borough Council,6/7/2023,0021038591/27,21038591, 97.05,Landscape Services Ltd,00057600,,Maintenance of Grounds,Parking Off-Street,E10HAE02820402,
http://statistics.data.gov.uk/id/local-authority/29UP,Tonbridge & Malling Borough Council,6/7/2023,0021038591/28,21038591, 26.28,Landscape Services Ltd,00057600,,Maintenance of Grounds,Parking Off-Street,E10HAE04020402,
http://statistics.data.gov.uk/id/local-authority/29UP,Tonbridge & Malling Borough Council,6/7/2023,0021038591/29,21038591, 86.65,Landscape Services Ltd,00057600,,Maintenance of Grounds,Parking Off-Street,E10HAE04520402,
http://statistics.data.gov.uk/id/local-authority/29UP,Tonbridge & Malling Borough Council,6/7/2023,0021038591/3,21038591, 62.73,Landscape Services Ltd,00057600,,Trade Refuse Charges,Haysden Country Park,B22LC000044008,
http://statistics.data.gov.uk/id/local-authority/29UP,Tonbridge & Malling Borough Council,6/7/2023,0021038591/4,21038591, 538.16,Landscape Services Ltd,00057600,,Litter Collection,Haysden Country Park,B22LC000044061,
http://statistics.data.gov.uk/id/local-authority/29UP,Tonbridge & Malling Borough Council,6/7/2023,0021038591/5,21038591, 1849.86,Landscape Services Ltd,00057600,,Grounds Maintenance Contract,Haysden Country Park,B22LC000050103,
http://statistics.data.gov.uk/id/local-authority/29UP,Tonbridge & Malling Borough Council,6/7/2023,0021038591/6,21038591, 645.29,Landscape Services Ltd,00057600,,Grounds Maintenance Contract,Haysden Country Park,B22LC000050103,
http://statistics.data.gov.uk/id/local-authority/29UP,Tonbridge & Malling Borough Council,6/7/2023,0021038591/7,21038591, 14164.79,Landscape Services Ltd,00057600,,Grounds Maintenance Contract,Open Spaces & Amenity Areas,B22LE000050103,
http://statistics.data.gov.uk/id/local-authority/29UP,Tonbridge & Malling Borough Council,6/7/2023,0021038591/8,21038591, 5103.55,Landscape Services Ltd,00057600,,Grounds Maintenance Contract,Cemetery,B26MP000050103,
http://statistics.data.gov.uk/id/local-authority/29UP,Tonbridge & Malling Borough Council,6/7/2023,0021038591/9,21038591, 256.67,Landscape Services Ltd,00057600,,Grounds Maintenance Contract,Churchyards St Peter & St Paul,B28MX000050103,
http://statistics.data.gov.uk/id/local-authority/29UP,Tonbridge & Malling Borough Council,6/7/2023,0021038592/1,21038592, 15.00,REDACTED PERSONAL DATA,01065500,,Purchases,Haysden Country Park,B22LC000040101,
http://statistics.data.gov.uk/id/local-authority/29UP,Tonbridge & Malling Borough Council,6/7/2023,0021038593/1,21038593, 50.00,Weddle and Co,00714900,,Maintenance of Grounds,Open Spaces & Amenity Areas,B22LE000020402,210057221
http://statistics.data.gov.uk/id/local-authority/29UP,Tonbridge & Malling Borough Council,6/7/2023,0021038594/1,21038594, 19.75,KCS Education/CSG Global Education Ltd,01897200,408845925,Purchases,Haysden Country Park,B22LC000040101,210057203
http://statistics.data.gov.uk/id/local-authority/29UP,Tonbridge & Malling Borough Council,6/7/2023,0021038594/2,21038594, 19.75,KCS Education/CSG Global Education Ltd,01897200,408845925,Purchases,Haysden Country Park,B22LC000040101,210057203
http://statistics.data.gov.uk/id/local-authority/29UP,Tonbridge & Malling Borough Council,6/7/2023,0021038595/1,21038595, 140.00,Yew Tree Stone Ltd,01874800,,Maintenance of Grounds,Cemetery,B26MP000020402,210057062
http://statistics.data.gov.uk/id/local-authority/29UP,Tonbridge & Malling Borough Council,6/7/2023,0021038596/1,21038596, 1300.00,Green Leaf Tree & Landscapes Limited,01860500,,Health & Safety - Trees,Countryside/Woodland Mgt,B22LG000044045,210057224
http://statistics.data.gov.uk/id/local-authority/29UP,Tonbridge & Malling Borough Council,6/7/2023,0022027792/1,22027792, 5802.00,The Lifecare Centre Ltd,00907100,,Other Expenses,Disabled Facilities Grant Mand,P03AC000009908,
http://statistics.data.gov.uk/id/local-authority/29UP,Tonbridge & Malling Borough Council,6/7/2023,0022027793/1,22027793, 4645.60,Countrystyle Group,00835900,781981681,Plastic Recycling,Dry Recycling,H34SR000054019,
http://statistics.data.gov.uk/id/local-authority/29UP,Tonbridge & Malling Borough Council,6/7/2023,0022027794/1,22027794, 30.08,Octopus Energy,01895300,,Electricity,Homelessness,C01AATNHS21002,
http://statistics.data.gov.uk/id/local-authority/29UP,Tonbridge & Malling Borough Council,6/7/2023,0022027796/1,22027796, 252.00,House to Home Lettings Ltd ,01647600,,Temporary Accommodation,Homelessness,C01AA000044051,
http://statistics.data.gov.uk/id/local-authority/29UP,Tonbridge & Malling Borough Council,6/7/2023,0022027797/1,22027797, 547.99,Town & Country Housing Group,01385400,,Other Expenses,Disabled Facilities Grant Mand,P03AC000009908,
http://statistics.data.gov.uk/id/local-authority/29UP,Tonbridge & Malling Borough Council,6/7/2023,0022027798/1,22027798, 4562.39,Roca Verdi Limited,01870500,,Other Expenses,Disabled Facilities Grant Mand,P03AC000009908,
http://statistics.data.gov.uk/id/local-authority/29UP,Tonbridge & Malling Borough Council,6/7/2023,0022027799/3,22027799, 4322.11,Ward Security LTD,01490000,,Dog Warden,Street Scene,H23SD000044100,
http://statistics.data.gov.uk/id/local-authority/29UP,Tonbridge & Malling Borough Council,6/7/2023,0022027800/3,22027800, 1397.00,Specialist Hygiene Services,01466100,,Cleaning & Domestic Supplies,Haysden Country Park,B22LC000026001,
http://statistics.data.gov.uk/id/local-authority/29UP,Tonbridge & Malling Borough Council,6/7/2023,0022027800/4,22027800, 4272.05,Specialist Hygiene Services,01466100,,Cleaning & Domestic Supplies,Haysden Country Park,B22LC000026001,
http://statistics.data.gov.uk/id/local-authority/29UP,Tonbridge & Malling Borough Council,6/7/2023,0022027802/1,22027802, 3114.00,Melba Products Ltd,00099400,,Purchases,Street Scene,H23SD000040101,220003333
http://statistics.data.gov.uk/id/local-authority/29UP,Tonbridge & Malling Borough Council,6/7/2023,0022027802/2,22027802, 209.00,Melba Products Ltd,00099400,,Purchases,Street Scene,H23SD000040101,220003333
http://statistics.data.gov.uk/id/local-authority/29UP,Tonbridge & Malling Borough Council,6/7/2023,0022027802/3,22027802, 118.80,Melba Products Ltd,00099400,,Purchases,Street Scene,H23SD000040101,220003333
http://statistics.data.gov.uk/id/local-authority/29UP,Tonbridge & Malling Borough Council,6/7/2023,0022027802/4,22027802, 175.00,Melba Products Ltd,00099400,,Purchases,Street Scene,H23SD000040101,220003333
http://statistics.data.gov.uk/id/local-authority/29UP,Tonbridge & Malling Borough Council,6/7/2023,0022027803/3,22027803, 800.00,Green Recycling LTD,01563000,,Paper Recycling,Dry Recycling,H34SR000054024,
http://statistics.data.gov.uk/id/local-authority/29UP,Tonbridge & Malling Borough Council,6/7/2023,0031019481/1,31019481, 3305.00,Marston,01485000,,Adjudication & Enforcement Ser,Parking Off-Street,E10HA000044230,
http://statistics.data.gov.uk/id/local-authority/29UP,Tonbridge & Malling Borough Council,6/7/2023,0031019482/1,31019482, 3014.67,Tonbridge & Malling Leisure Trust,01469100,,Ticket Refunds - Lower Castle,Parking Off-Street,E10HAE01344199,
http://statistics.data.gov.uk/id/local-authority/29UP,Tonbridge & Malling Borough Council,6/7/2023,0031019483/1,31019483, 33.28,Shell U.K. Oil Products Limited,01673300,,"Petrol, Diesel & Oil",Patrolling,B22LF000030106,
http://statistics.data.gov.uk/id/local-authority/29UP,Tonbridge & Malling Borough Council,6/7/2023,0031019483/2,31019483, 80.16,Shell U.K. Oil Products Limited,01673300,,"Petrol, Diesel & Oil",Parking Off-Street,E10HA000030106,
http://statistics.data.gov.uk/id/local-authority/29UP,Tonbridge & Malling Borough Council,6/7/2023,0031019483/3,31019483, 80.16,Shell U.K. Oil Products Limited,01673300,,"Petrol, Diesel & Oil",Parking On-Street,E10HD000030106,
http://statistics.data.gov.uk/id/local-authority/29UP,Tonbridge & Malling Borough Council,6/7/2023,0031019484/1,31019484, 8.12,B&Q/Screwfix Direct(TradeUKAccount),00141300,,Purchases,Boro Highways & Emergency Oper,E01AA000040101,
http://statistics.data.gov.uk/id/local-authority/29UP,Tonbridge & Malling Borough Council,6/7/2023,0031019485/1,31019485, 1574.09,CDER Group,01773300,,Adjudication & Enforcement Ser,Parking Off-Street,E10HA000044230,
http://statistics.data.gov.uk/id/local-authority/29UP,Tonbridge & Malling Borough Council,6/7/2023,0031019486/1,31019486, 725.10,G & G Signs,01178400,,Purchases,Boro Highways & Emergency Oper,E01AA000040101,310043054
http://statistics.data.gov.uk/id/local-authority/29UP,Tonbridge & Malling Borough Council,6/7/2023,0031019487/1,31019487, 300.00,SKF Contractors Ltd,00092000,621768141,Premises Repairs & Maintenance,Parking On-Street,E10HD000020601,310043049
http://statistics.data.gov.uk/id/local-authority/29UP,Tonbridge & Malling Borough Council,6/7/2023,0031019488/1,31019488, 235.72,Lemon Drainage Services LTD,01761600,,Sewerage Charges,Haysden Country Park,B22LC000024003,
http://statistics.data.gov.uk/id/local-authority/29UP,Tonbridge & Malling Borough Council,6/7/2023,0032010251/1,32010251, 2244.50,Hays Specialist Recruitment Limited,01879200,773695871,Temporary Staff,Planning Sals&Overheads,D01AJDJ0111300,
http://statistics.data.gov.uk/id/local-authority/29UP,Tonbridge & Malling Borough Council,6/7/2023,0032010252/1,32010252, 1640.70,The Oyster Partnership,01196400,,Temporary Staff,Planning Sals&Overheads,D01AJDJ0111300,
http://statistics.data.gov.uk/id/local-authority/29UP,Tonbridge & Malling Borough Council,6/7/2023,0032010253/1,32010253, 1713.35,The Oyster Partnership,01196400,,Temporary Staff,Planning Sals&Overheads,D01AJDJ0111300,
http://statistics.data.gov.uk/id/local-authority/29UP,Tonbridge & Malling Borough Council,6/7/2023,0032010254/1,32010254, 2066.25,Vivid Resourcing,01773700,,Temporary Staff,Planning Sals&Overheads,D01AJDJ0111300,
http://statistics.data.gov.uk/id/local-authority/29UP,Tonbridge & Malling Borough Council,6/7/2023,0032010255/1,32010255, 900.00,Quality Bailiffs,01835600,,Professional Fees,Development Management,A01ABENFO44001,
http://statistics.data.gov.uk/id/local-authority/29UP,Tonbridge & Malling Borough Council,6/7/2023,0032010257/1,32010257, 1755.25,Hays Specialist Recruitment Limited,01879200,773695871,Temporary Staff,Planning Sals&Overheads,D01AJDJ0111300,
http://statistics.data.gov.uk/id/local-authority/29UP,Tonbridge & Malling Borough Council,6/7/2023,0032010258/1,32010258, 2110.50,Hays Specialist Recruitment Limited,01879200,773695871,Temporary Staff,Planning Sals&Overheads,D01AJDJ0111300,
http://statistics.data.gov.uk/id/local-authority/29UP,Tonbridge & Malling Borough Council,6/7/2023,0041035552/3,41035552, 1081.14,Morgan Hunt UK Ltd,01086900,,Temporary Staff,Finance Sals&Overheads,D01AFDF1111300,
http://statistics.data.gov.uk/id/local-authority/29UP,Tonbridge & Malling Borough Council,6/7/2023,0041035553/3,41035553, 2568.03,Rundle & Co Ltd,00087200,,Bailiffs Commission,Local Revenue & NNDR Collect,D41QA000044075,
http://statistics.data.gov.uk/id/local-authority/29UP,Tonbridge & Malling Borough Council,6/7/2023,0041035554/3,41035554, 149.25,Maidstone Borough Council,01173700,,Bailiffs Commission,Local Revenue & NNDR Collect,D41QA000044075,
http://statistics.data.gov.uk/id/local-authority/29UP,Tonbridge & Malling Borough Council,6/7/2023,0041035555/3,41035555, 1917.14,Maidstone Borough Council,01173700,,Bailiffs Commission,Local Revenue & NNDR Collect,D41QA000044075,
http://statistics.data.gov.uk/id/local-authority/29UP,Tonbridge & Malling Borough Council,6/7/2023,0041035557/1,41035557, 20.00,Computershare Voucher Services,01212600,,Childcare Scheme,Finance Sals&Overheads,D01AFDF0911136,
http://statistics.data.gov.uk/id/local-authority/29UP,Tonbridge & Malling Borough Council,6/7/2023,0041035557/2,41035557, 1.40,Computershare Voucher Services,01212600,,National Insurance,Finance Sals&Overheads,D01AFDF0911191,
http://statistics.data.gov.uk/id/local-authority/29UP,Tonbridge & Malling Borough Council,6/7/2023,0041035557/3,41035557, 20.00,Computershare Voucher Services,01212600,,Childcare Scheme,Env Hlth & Hsg Sals&Overheads,D01AVDV0211136,
http://statistics.data.gov.uk/id/local-authority/29UP,Tonbridge & Malling Borough Council,6/7/2023,0041035557/4,41035557, 1.40,Computershare Voucher Services,01212600,,National Insurance,Env Hlth & Hsg Sals&Overheads,D01AVDV0211191,
http://statistics.data.gov.uk/id/local-authority/29UP,Tonbridge & Malling Borough Council,6/7/2023,0041035557/5,41035557, 243.00,Computershare Voucher Services,01212600,,Childcare Scheme,Env Hlth & Hsg Sals&Overheads,D01AVDV0711136,
http://statistics.data.gov.uk/id/local-authority/29UP,Tonbridge & Malling Borough Council,6/7/2023,0041035557/6,41035557, 17.01,Computershare Voucher Services,01212600,,National Insurance,Env Hlth & Hsg Sals&Overheads,D01AVDV0711191,
http://statistics.data.gov.uk/id/local-authority/29UP,Tonbridge & Malling Borough Council,6/7/2023,0041035558/1,41035558, 8015.10,Greenhalgh Kerr,01590200,,Bailiffs Commission,Local Revenue & NNDR Collect,D41QA000044075,
http://statistics.data.gov.uk/id/local-authority/29UP,Tonbridge & Malling Borough Council,6/7/2023,0041035558/2,41035558, 291.00,Greenhalgh Kerr,01590200,,Bailiffs Commission,Local Revenue & NNDR Collect,D41QA000044075,
http://statistics.data.gov.uk/id/local-authority/29UP,Tonbridge & Malling Borough Council,6/7/2023,0041035559/1,41035559, 117.46,Adelante Software Limited,01393800,812115871,Credit Card Commission,Banking Arrangements,D43QK000044082,
http://statistics.data.gov.uk/id/local-authority/29UP,Tonbridge & Malling Borough Council,6/7/2023,0041035570/1,41035570, 1350.00,REDACTED PERSONAL DATA,01901500,,Temporary Accommodation,Ukrainian Refugee Assistance,D54UA000044051,
http://statistics.data.gov.uk/id/local-authority/29UP,Tonbridge & Malling Borough Council,6/8/2023,0041035573/1,41035573, 3759.67,Clarion Housing,01078200,,Homelessness Reduction Initiat,Homelessness,C01AA000048019,
http://statistics.data.gov.uk/id/local-authority/29UP,Tonbridge & Malling Borough Council,6/14/2023,0011046201/1,11046201, 259.20,Brachers Solicitors,00512000,,Legal Fees,Legal Sals&Overheads,D01ARDR0044002,
http://statistics.data.gov.uk/id/local-authority/29UP,Tonbridge & Malling Borough Council,6/14/2023,0011046207/1,11046207, 178.00,NKM Fire Protection Ltd,01784600,,BRREP Servicing - FireAlarmSys,Tonbridge Swimming Pool,M15HBP20001937,110069626
http://statistics.data.gov.uk/id/local-authority/29UP,Tonbridge & Malling Borough Council,6/14/2023,0011046230/1,11046230, 51.76,Lakeside Printing Ltd,01902100,,Initiatives,Climate Change,D47SA000048135,
http://statistics.data.gov.uk/id/local-authority/29UP,Tonbridge & Malling Borough Council,6/14/2023,0011046231/1,11046231, 112.00,KCC Street Lighting Dept.,01890600,,Initiatives,UK Shared Prosperity Fund,D52TH000048135,110070111
http://statistics.data.gov.uk/id/local-authority/29UP,Tonbridge & Malling Borough Council,6/14/2023,0011046232/1,11046232, 297.00,Addington Village Hall Committee,01083300,,Rents,Conduct of Elections,D31MG000022001,
http://statistics.data.gov.uk/id/local-authority/29UP,Tonbridge & Malling Borough Council,6/14/2023,0011046233/1,11046233, 346.50,Aylesford Community Centre,00211700,,Rents,Conduct of Elections,D31MG000022001,
http://statistics.data.gov.uk/id/local-authority/29UP,Tonbridge & Malling Borough Council,6/14/2023,0011046234/1,11046234, 400.00,Bluebell Hill Village Hall,00162400,,Rents,Conduct of Elections,D31MG000022001,
http://statistics.data.gov.uk/id/local-authority/29UP,Tonbridge & Malling Borough Council,6/14/2023,0011046235/1,11046235, 375.00,Borough Green Village Hall Mng Committee,01278300,,Rents,Conduct of Elections,D31MG000022001,
http://statistics.data.gov.uk/id/local-authority/29UP,Tonbridge & Malling Borough Council,6/14/2023,0011046236/1,11046236, 200.00,Burham Old School Community Centre,00220300,,Rents,Conduct of Elections,D31MG000022001,
http://statistics.data.gov.uk/id/local-authority/29UP,Tonbridge & Malling Borough Council,6/14/2023,0011046237/1,11046237, 246.67,East Malling & Larkfield Parish Council,00030200,,Rents,Conduct of Elections,D31MG000022001,
http://statistics.data.gov.uk/id/local-authority/29UP,Tonbridge & Malling Borough Council,6/14/2023,0011046238/1,11046238, 396.00,East Peckham Methodist Church,00211800,,Rents,Conduct of Elections,D31MG000022001,
http://statistics.data.gov.uk/id/local-authority/29UP,Tonbridge & Malling Borough Council,6/14/2023,0011046239/1,11046239, 544.00,Snodland Town Council,00092700,,Rents,Conduct of Elections,D31MG000022001,
http://statistics.data.gov.uk/id/local-authority/29UP,Tonbridge & Malling Borough Council,6/14/2023,0011046240/1,11046240, 214.50,Ditton Parish Council,00140100,,Rents,Conduct of Elections,D31MG000022001,
http://statistics.data.gov.uk/id/local-authority/29UP,Tonbridge & Malling Borough Council,6/14/2023,0011046241/1,11046241, 266.67,East Malling & Larkfield Parish Council,00030200,,Rents,Conduct of Elections,D31MG000022001,
http://statistics.data.gov.uk/id/local-authority/29UP,Tonbridge & Malling Borough Council,6/14/2023,0011046242/1,11046242, 350.00,Corpus Christi Church/Fisher Hall,00211000,,Rents,Conduct of Elections,D31MG000022001,
http://statistics.data.gov.uk/id/local-authority/29UP,Tonbridge & Malling Borough Council,6/14/2023,0011046243/1,11046243, 500.00,Studio 23 Photography,01856900,,Other Expenses,Mayoral & Other Member Support,D29LX000048010,110070212
http://statistics.data.gov.uk/id/local-authority/29UP,Tonbridge & Malling Borough Council,6/14/2023,0011046244/1,11046244, 200.00,Studio 23 Photography,01856900,,Marketing,Information & Publicity,D32MJ000044215,110070278
http://statistics.data.gov.uk/id/local-authority/29UP,Tonbridge & Malling Borough Council,6/14/2023,0011046245/1,11046245, 198.00,The Golden Green Mission Hall Charity,01290600,,Rents,Conduct of Elections,D31MG000022001,
http://statistics.data.gov.uk/id/local-authority/29UP,Tonbridge & Malling Borough Council,6/14/2023,0011046246/1,11046246, 275.00,Hadlow Parish Council,00041400,,Rents,Conduct of Elections,D31MG000022001,
http://statistics.data.gov.uk/id/local-authority/29UP,Tonbridge & Malling Borough Council,6/14/2023,0011046247/1,11046247, 225.00,Hillview School for Girls,00739000,,Rents,Conduct of Elections,D31MG000022001,
http://statistics.data.gov.uk/id/local-authority/29UP,Tonbridge & Malling Borough Council,6/14/2023,0011046248/1,11046248, 135.00,Hugh Christie Technology College,00167700,,Rents,Conduct of Elections,D31MG000022001,
http://statistics.data.gov.uk/id/local-authority/29UP,Tonbridge & Malling Borough Council,6/14/2023,0011046249/1,11046249, 160.00,Ightham Village Hall,00212100,,Rents,Conduct of Elections,D31MG000022001,
http://statistics.data.gov.uk/id/local-authority/29UP,Tonbridge & Malling Borough Council,6/14/2023,0011046250/1,11046250, 499.37,Kings Hill Parish Council,00262200,,Rents,Conduct of Elections,D31MG000022001,
http://statistics.data.gov.uk/id/local-authority/29UP,Tonbridge & Malling Borough Council,6/14/2023,0011046251/1,11046251, 300.00,Kings Hill Cricket Club ,01308200,,Rents,Conduct of Elections,D31MG000022001,
http://statistics.data.gov.uk/id/local-authority/29UP,Tonbridge & Malling Borough Council,6/14/2023,0011046252/1,11046252, 416.67,Leybourne Parish Council,00162300,,Rents,Conduct of Elections,D31MG000022001,
http://statistics.data.gov.uk/id/local-authority/29UP,Tonbridge & Malling Borough Council,6/14/2023,0011046253/1,11046253, 1280.00,Tonbridge Methodist Church,00962200,,Rents,Conduct of Elections,D31MG000022001,
http://statistics.data.gov.uk/id/local-authority/29UP,Tonbridge & Malling Borough Council,6/14/2023,0011046254/1,11046254, 600.00,North Kent College,01805000,,Rents,Conduct of Elections,D31MG000022001,
http://statistics.data.gov.uk/id/local-authority/29UP,Tonbridge & Malling Borough Council,6/14/2023,0011046255/1,11046255, 325.00,Offham Village Hall M.C.,00242300,,Rents,Conduct of Elections,D31MG000022001,
http://statistics.data.gov.uk/id/local-authority/29UP,Tonbridge & Malling Borough Council,6/14/2023,0011046256/1,11046256, 310.00,Platt Memorial Hall,00211900,,Rents,Conduct of Elections,D31MG000022001,
http://statistics.data.gov.uk/id/local-authority/29UP,Tonbridge & Malling Borough Council,6/14/2023,0011046257/1,11046257, 237.00,Plaxtol Memorial Hall,00631200,,Rents,Conduct of Elections,D31MG000022001,
http://statistics.data.gov.uk/id/local-authority/29UP,Tonbridge & Malling Borough Council,6/14/2023,0011046258/1,11046258, 500.00,Ryarsh Village Hall,01732500,,Rents,Conduct of Elections,D31MG000022001,
http://statistics.data.gov.uk/id/local-authority/29UP,Tonbridge & Malling Borough Council,6/14/2023,0011046259/1,11046259, 250.00,Royal British Legion Industries Ltd,00139700,,Rents,Conduct of Elections,D31MG000022001,
http://statistics.data.gov.uk/id/local-authority/29UP,Tonbridge & Malling Borough Council,6/14/2023,0011046260/1,11046260, 220.00,Shipbourne Village Hall Trust,00161000,,Rents,Conduct of Elections,D31MG000022001,
http://statistics.data.gov.uk/id/local-authority/29UP,Tonbridge & Malling Borough Council,6/14/2023,0011046261/1,11046261, 252.00,Snodland Community Association,00355300,,Rents,Conduct of Elections,D31MG000022001,
http://statistics.data.gov.uk/id/local-authority/29UP,Tonbridge & Malling Borough Council,6/14/2023,0011046262/1,11046262, 200.00,Six in One Community Association,00881800,,Rents,Conduct of Elections,D31MG000022001,
http://statistics.data.gov.uk/id/local-authority/29UP,Tonbridge & Malling Borough Council,6/14/2023,0011046263/1,11046263, 145.00,Mereworth Village Hall,00161800,,Rents,Conduct of Elections,D31MG000022001,
http://statistics.data.gov.uk/id/local-authority/29UP,Tonbridge & Malling Borough Council,6/14/2023,0011046264/1,11046264, 180.00,Leybourne Chase Community Centre,01718500,,Rents,Conduct of Elections,D31MG000022001,
http://statistics.data.gov.uk/id/local-authority/29UP,Tonbridge & Malling Borough Council,6/14/2023,0011046265/1,11046265, 341.60,St Georges Hall Management Committee,01195300,,Rents,Conduct of Elections,D31MG000022001,
http://statistics.data.gov.uk/id/local-authority/29UP,Tonbridge & Malling Borough Council,6/14/2023,0011046266/1,11046266, 235.00,St Philips Church Tonbridge,01010300,,Rents,Conduct of Elections,D31MG000022001,
http://statistics.data.gov.uk/id/local-authority/29UP,Tonbridge & Malling Borough Council,6/14/2023,0011046267/1,11046267, 235.00,Tonbridge Parish Church,01409700,,Rents,Conduct of Elections,D31MG000022001,
http://statistics.data.gov.uk/id/local-authority/29UP,Tonbridge & Malling Borough Council,6/14/2023,0011046268/1,11046268, 800.00,PCC St Stephens Church,01540700,,Rents,Conduct of Elections,D31MG000022001,
http://statistics.data.gov.uk/id/local-authority/29UP,Tonbridge & Malling Borough Council,6/14/2023,0011046269/1,11046269, 300.00,Stansted Village Hall,01021500,,Rents,Conduct of Elections,D31MG000022001,
http://statistics.data.gov.uk/id/local-authority/29UP,Tonbridge & Malling Borough Council,6/14/2023,0011046270/1,11046270, 330.00,The Oast Theatre,01272100,,Rents,Conduct of Elections,D31MG000022001,
http://statistics.data.gov.uk/id/local-authority/29UP,Tonbridge & Malling Borough Council,6/14/2023,0011046271/1,11046271, 375.00,Tonbridge Grammar School,00211400,,Rents,Conduct of Elections,D31MG000022001,
http://statistics.data.gov.uk/id/local-authority/29UP,Tonbridge & Malling Borough Council,6/14/2023,0011046272/1,11046272, 240.00,Trottiscliffe Village Hall,00162000,,Rents,Conduct of Elections,D31MG000022001,
http://statistics.data.gov.uk/id/local-authority/29UP,Tonbridge & Malling Borough Council,6/14/2023,0011046273/1,11046273, 175.00,Tunbury Hall Committee,00212000,,Rents,Conduct of Elections,D31MG000022001,
http://statistics.data.gov.uk/id/local-authority/29UP,Tonbridge & Malling Borough Council,6/14/2023,0011046274/1,11046274, 267.50,Wateringbury Millennium Village Hall,00982100,,Rents,Conduct of Elections,D31MG000022001,
http://statistics.data.gov.uk/id/local-authority/29UP,Tonbridge & Malling Borough Council,6/14/2023,0011046275/1,11046275, 190.00,West Malling Baptist Church,01806100,,Rents,Conduct of Elections,D31MG000022001,
http://statistics.data.gov.uk/id/local-authority/29UP,Tonbridge & Malling Borough Council,6/14/2023,0011046276/1,11046276, 330.00,West Peckham Village Hall CIO,00280400,,Rents,Conduct of Elections,D31MG000022001,
http://statistics.data.gov.uk/id/local-authority/29UP,Tonbridge & Malling Borough Council,6/14/2023,0011046277/1,11046277, 372.50,Eryl Davies Veterinary Surgeon,01657600,,Professional Fees,Licences - Fee Paying,H27SH000044001,
http://statistics.data.gov.uk/id/local-authority/29UP,Tonbridge & Malling Borough Council,6/14/2023,0011046278/1,11046278, 425.00,HILDENBOROUGH PCC,00348800,,Rents,Conduct of Elections,D31MG000022001,
http://statistics.data.gov.uk/id/local-authority/29UP,Tonbridge & Malling Borough Council,6/14/2023,0011046279/1,11046279, 2897.39,Coolburn Air Conditioning Ltd,01137900,,BRREP Servicing - air handling,Leis Man Poult Wood Golf Centr,M15HEP20001936,110069898
http://statistics.data.gov.uk/id/local-authority/29UP,Tonbridge & Malling Borough Council,6/14/2023,0011046280/1,11046280, 3600.00,Involve Kent,01380500,,Citizens Advice Bureau Grants,Grants & Payments to CAB,D37PB000047004,
http://statistics.data.gov.uk/id/local-authority/29UP,Tonbridge & Malling Borough Council,6/14/2023,0011046281/1,11046281, 6400.00,Age UK Sevenoaks & Tonbridge,01381300,,Citizens Advice Bureau Grants,Grants & Payments to CAB,D37PB000047004,
http://statistics.data.gov.uk/id/local-authority/29UP,Tonbridge & Malling Borough Council,6/14/2023,0011046282/1,11046282, 7500.00,The East Malling Centre/Community Larder,01168000,,Charitable / Voluntary Organis,Grants & Payments to Vol Orgn,D37PA000047005,
http://statistics.data.gov.uk/id/local-authority/29UP,Tonbridge & Malling Borough Council,6/14/2023,0011046283/1,11046283, 4.04,REDACTED PERSONAL DATA,01189400,,Hospitality,Mayoral & Other Member Support,D29LX000048003,
http://statistics.data.gov.uk/id/local-authority/29UP,Tonbridge & Malling Borough Council,6/14/2023,0011046283/2,11046283, 30.50,REDACTED PERSONAL DATA,01189400,,Hospitality,Mayoral & Other Member Support,D29LX000048003,
http://statistics.data.gov.uk/id/local-authority/29UP,Tonbridge & Malling Borough Council,6/14/2023,0012008756/10,12008756, 9.00,O2 UK Ltd,01268000,,Mobile Telephones,Admin & Prop Sals&Overheads,D01AADA1245013,
http://statistics.data.gov.uk/id/local-authority/29UP,Tonbridge & Malling Borough Council,6/14/2023,0012008756/11,12008756, 3.00,O2 UK Ltd,01268000,,Mobile Telephones,Chief Exec Sals&Overheads,D01ACDC0045013,
http://statistics.data.gov.uk/id/local-authority/29UP,Tonbridge & Malling Borough Council,6/14/2023,0012008756/12,12008756, 3.00,O2 UK Ltd,01268000,,Mobile Telephones,Chief Exec Sals&Overheads,D01ACDC0145013,
http://statistics.data.gov.uk/id/local-authority/29UP,Tonbridge & Malling Borough Council,6/14/2023,0012008756/13,12008756, 3.00,O2 UK Ltd,01268000,,Mobile Telephones,Chief Exec Sals&Overheads,D01ACDC0245013,
http://statistics.data.gov.uk/id/local-authority/29UP,Tonbridge & Malling Borough Council,6/14/2023,0012008756/14,12008756, 3.00,O2 UK Ltd,01268000,,Mobile Telephones,Technical Sals&Overheads,D01AEDE0045013,
http://statistics.data.gov.uk/id/local-authority/29UP,Tonbridge & Malling Borough Council,6/14/2023,0012008756/15,12008756, 6.00,O2 UK Ltd,01268000,,Mobile Telephones,Technical Sals&Overheads,D01AEDE0145013,
http://statistics.data.gov.uk/id/local-authority/29UP,Tonbridge & Malling Borough Council,6/14/2023,0012008756/16,12008756, 9.50,O2 UK Ltd,01268000,,Mobile Telephones,Technical Sals&Overheads,D01AEDE0245013,
http://statistics.data.gov.uk/id/local-authority/29UP,Tonbridge & Malling Borough Council,6/14/2023,0012008756/17,12008756, 42.10,O2 UK Ltd,01268000,,Mobile Telephones,Technical Sals&Overheads,D01AEDE0445013,
http://statistics.data.gov.uk/id/local-authority/29UP,Tonbridge & Malling Borough Council,6/14/2023,0012008756/18,12008756, 3.00,O2 UK Ltd,01268000,,Mobile Telephones,Technical Sals&Overheads,D01AEDE0545013,
http://statistics.data.gov.uk/id/local-authority/29UP,Tonbridge & Malling Borough Council,6/14/2023,0012008756/19,12008756, 12.00,O2 UK Ltd,01268000,,Mobile Telephones,Finance Sals&Overheads,D01AFDF0045013,
http://statistics.data.gov.uk/id/local-authority/29UP,Tonbridge & Malling Borough Council,6/14/2023,0012008756/20,12008756, 6.00,O2 UK Ltd,01268000,,Mobile Telephones,Finance Sals&Overheads,D01AFDF0945013,
http://statistics.data.gov.uk/id/local-authority/29UP,Tonbridge & Malling Borough Council,6/14/2023,0012008756/21,12008756, 12.00,O2 UK Ltd,01268000,,Mobile Telephones,St Scene & Leis Sals&Overheads,D01AGDG0045013,
http://statistics.data.gov.uk/id/local-authority/29UP,Tonbridge & Malling Borough Council,6/14/2023,0012008756/22,12008756, 12.00,O2 UK Ltd,01268000,,Mobile Telephones,St Scene & Leis Sals&Overheads,D01AGDG0145013,
http://statistics.data.gov.uk/id/local-authority/29UP,Tonbridge & Malling Borough Council,6/14/2023,0012008756/23,12008756, 9.40,O2 UK Ltd,01268000,,Mobile Telephones,St Scene & Leis Sals&Overheads,D01AGDG0445013,
http://statistics.data.gov.uk/id/local-authority/29UP,Tonbridge & Malling Borough Council,6/14/2023,0012008756/24,12008756, 36.00,O2 UK Ltd,01268000,,Mobile Telephones,St Scene & Leis Sals&Overheads,D01AGDG2045013,
http://statistics.data.gov.uk/id/local-authority/29UP,Tonbridge & Malling Borough Council,6/14/2023,0012008756/25,12008756, 9.00,O2 UK Ltd,01268000,,Mobile Telephones,Planning Sals&Overheads,D01AJDJ0045013,
http://statistics.data.gov.uk/id/local-authority/29UP,Tonbridge & Malling Borough Council,6/14/2023,0012008756/26,12008756, 12.00,O2 UK Ltd,01268000,,Mobile Telephones,Planning Sals&Overheads,D01AJDJ0245013,
http://statistics.data.gov.uk/id/local-authority/29UP,Tonbridge & Malling Borough Council,6/14/2023,0012008756/27,12008756, 6.00,O2 UK Ltd,01268000,,Mobile Telephones,Legal Sals&Overheads,D01ARDR0045013,
http://statistics.data.gov.uk/id/local-authority/29UP,Tonbridge & Malling Borough Council,6/14/2023,0012008756/28,12008756, 12.00,O2 UK Ltd,01268000,,Mobile Telephones,Legal Sals&Overheads,D01ARDR0445013,
http://statistics.data.gov.uk/id/local-authority/29UP,Tonbridge & Malling Borough Council,6/14/2023,0012008756/29,12008756, 3.00,O2 UK Ltd,01268000,,Mobile Telephones,Legal Sals&Overheads,D01ARDR0745013,
http://statistics.data.gov.uk/id/local-authority/29UP,Tonbridge & Malling Borough Council,6/14/2023,0012008756/30,12008756, 3.00,O2 UK Ltd,01268000,,Mobile Telephones,Env Hlth & Hsg Sals&Overheads,D01AVDV0045013,
http://statistics.data.gov.uk/id/local-authority/29UP,Tonbridge & Malling Borough Council,6/14/2023,0012008756/31,12008756, 9.00,O2 UK Ltd,01268000,,Mobile Telephones,Env Hlth & Hsg Sals&Overheads,D01AVDV0145013,
http://statistics.data.gov.uk/id/local-authority/29UP,Tonbridge & Malling Borough Council,6/14/2023,0012008756/32,12008756, 6.00,O2 UK Ltd,01268000,,Mobile Telephones,Env Hlth & Hsg Sals&Overheads,D01AVDV0345013,
http://statistics.data.gov.uk/id/local-authority/29UP,Tonbridge & Malling Borough Council,6/14/2023,0012008756/33,12008756, 3.00,O2 UK Ltd,01268000,,Mobile Telephones,Env Hlth & Hsg Sals&Overheads,D01AVDV0745013,
http://statistics.data.gov.uk/id/local-authority/29UP,Tonbridge & Malling Borough Council,6/14/2023,0012008756/34,12008756, 6.00,O2 UK Ltd,01268000,,Mobile Telephones,Env Hlth & Hsg Sals&Overheads,D01AVDV0945013,
http://statistics.data.gov.uk/id/local-authority/29UP,Tonbridge & Malling Borough Council,6/14/2023,0012008756/35,12008756, 9.40,O2 UK Ltd,01268000,,Mobile Telephones,Customer Services,D23CS000045013,
http://statistics.data.gov.uk/id/local-authority/29UP,Tonbridge & Malling Borough Council,6/14/2023,0012008756/36,12008756, 3.00,O2 UK Ltd,01268000,,Mobile Telephones,Tonbridge Gateway,D23TG000045013,
http://statistics.data.gov.uk/id/local-authority/29UP,Tonbridge & Malling Borough Council,6/14/2023,0012008756/37,12008756, 627.20,O2 UK Ltd,01268000,,Leased Lines & Modems,Information Technology,D27KD000045011,
http://statistics.data.gov.uk/id/local-authority/29UP,Tonbridge & Malling Borough Council,6/14/2023,0012008756/38,12008756, 3.00,O2 UK Ltd,01268000,,Mobile Telephones,Mayoral & Other Member Support,D29LX000045013,
http://statistics.data.gov.uk/id/local-authority/29UP,Tonbridge & Malling Borough Council,6/14/2023,0012008756/39,12008756, 3.00,O2 UK Ltd,01268000,,Emergency Out of Hours Recharg,Refuse Collection,H20SA000045030,
http://statistics.data.gov.uk/id/local-authority/29UP,Tonbridge & Malling Borough Council,6/14/2023,0012008756/40,12008756, 3.00,O2 UK Ltd,01268000,,Emergency Out of Hours Recharg,Street Scene,H23SD000045030,
http://statistics.data.gov.uk/id/local-authority/29UP,Tonbridge & Malling Borough Council,6/14/2023,0012008756/7,12008756, 3.00,O2 UK Ltd,01268000,,Telephones - General,Open Spaces & Amenity Areas,B22LE000045010,
http://statistics.data.gov.uk/id/local-authority/29UP,Tonbridge & Malling Borough Council,6/14/2023,0012008756/8,12008756, 3.00,O2 UK Ltd,01268000,,Mobile Telephones,Admin & Prop Sals&Overheads,D01AADA0045013,
http://statistics.data.gov.uk/id/local-authority/29UP,Tonbridge & Malling Borough Council,6/14/2023,0012008756/9,12008756, 3.00,O2 UK Ltd,01268000,,Mobile Telephones,Admin & Prop Sals&Overheads,D01AADA1045013,
http://statistics.data.gov.uk/id/local-authority/29UP,Tonbridge & Malling Borough Council,6/14/2023,0012008757/1,12008757, 4376.87,NTT Cloud Communications UK Ltd,01794600,,Software Hire & Support,Information Technology,D27KD000044059,110069968
http://statistics.data.gov.uk/id/local-authority/29UP,Tonbridge & Malling Borough Council,6/14/2023,0012008758/1,12008758, 8.47,KCS - KCC,00054200,,Copy Charges,Multi Function Devices,D22GB000040125,
http://statistics.data.gov.uk/id/local-authority/29UP,Tonbridge & Malling Borough Council,6/14/2023,0012008758/2,12008758, 122.61,KCS - KCC,00054200,,Leasing Charges,Multi Function Devices,D22GB000044038,
http://statistics.data.gov.uk/id/local-authority/29UP,Tonbridge & Malling Borough Council,6/14/2023,0021038597/3,21038597, 70.50,Initial Washroom Hygiene,00048300,,Cleaning & Domestic Supplies,Haysden Country Park,B22LC000026001,
http://statistics.data.gov.uk/id/local-authority/29UP,Tonbridge & Malling Borough Council,6/14/2023,0021038598/1,21038598, 5639.00,House to Home Lettings Ltd ,01647600,,Temporary Accommodation,Homelessness,C01AA000044051,
http://statistics.data.gov.uk/id/local-authority/29UP,Tonbridge & Malling Borough Council,6/14/2023,0021038599/1,21038599, 800.00,Green Leaf Tree & Landscapes Limited,01860500,,Health & Safety - Trees,Countryside/Woodland Mgt,B22LG000044045,210057225
http://statistics.data.gov.uk/id/local-authority/29UP,Tonbridge & Malling Borough Council,6/14/2023,0021038600/1,21038600, 755.99,Cater-Kwik Ltd,01265500,,Initial Furniture & Equipment,Capital Renewals Leisure,P05KGBC0409906,210057241
http://statistics.data.gov.uk/id/local-authority/29UP,Tonbridge & Malling Borough Council,6/14/2023,0021038601/1,21038601, 135.00,Weddle and Co,00714900,,Maintenance of Play Equipment,Open Spaces & Amenity Areas,B22LE000020503,210057259
http://statistics.data.gov.uk/id/local-authority/29UP,Tonbridge & Malling Borough Council,6/14/2023,0021038602/1,21038602, 1400.00,Bourne Amenity,00052100,,Maintenance of Grounds,Sports Grounds,B13ET000020402,210057212
http://statistics.data.gov.uk/id/local-authority/29UP,Tonbridge & Malling Borough Council,6/14/2023,0021038603/1,21038603, 21.44,Amazon EU SARL,01738400,,Maintenance of Grounds,Sports Grounds,B13ET000020402,
http://statistics.data.gov.uk/id/local-authority/29UP,Tonbridge & Malling Borough Council,6/14/2023,0021038604/1,21038604, 200.00,Alltree Consultancy Ltd,01668300,,Health & Safety - Trees,Countryside/Woodland Mgt,B22LG000044045,210057234
http://statistics.data.gov.uk/id/local-authority/29UP,Tonbridge & Malling Borough Council,6/14/2023,0021038605/1,21038605, 137.50,Premier Education Shirly Sports Ltd,01816200,,Partnership Fees,Youth Partnerships,B33PG000044048,210057245
http://statistics.data.gov.uk/id/local-authority/29UP,Tonbridge & Malling Borough Council,6/14/2023,0021038606/1,21038606, 3985.00,Arnold Tarmac Ltd,01685100,619126544,Maintenance of Grounds,Cemetery,B26MP000020402,210057250
http://statistics.data.gov.uk/id/local-authority/29UP,Tonbridge & Malling Borough Council,6/14/2023,0021038607/1,21038607, 4485.00,Arnold Tarmac Ltd,01685100,619126544,Maintenance of Grounds,Sports Grounds,B13ET000020402,210057232
http://statistics.data.gov.uk/id/local-authority/29UP,Tonbridge & Malling Borough Council,6/14/2023,0022027805/1,22027805, 5820.75,YMCA Thames Gateway Group,01887700,,Professional Fees,Homelessness,C01AATNPR44001,
http://statistics.data.gov.uk/id/local-authority/29UP,Tonbridge & Malling Borough Council,6/14/2023,0022027806/1,22027806, 5605.00,Tunbridge Wells Borough Council,00844600,,Air Quality Monitoring,Environmental Protection,H32SN000054016,220003353
http://statistics.data.gov.uk/id/local-authority/29UP,Tonbridge & Malling Borough Council,6/14/2023,0022027807/1,22027807, 12537.71,Urbaser LTD,01718800,,Contract Payments,Refuse Collection,H20SA000054001,
http://statistics.data.gov.uk/id/local-authority/29UP,Tonbridge & Malling Borough Council,6/14/2023,0022027807/2,22027807, 18012.78,Urbaser LTD,01718800,,Contract Payments,Street Scene,H23SD000054001,
http://statistics.data.gov.uk/id/local-authority/29UP,Tonbridge & Malling Borough Council,6/14/2023,0022027807/3,22027807, 503.65,Urbaser LTD,01718800,,Contract Payments,Dry Recycling,H34SR000054001,
http://statistics.data.gov.uk/id/local-authority/29UP,Tonbridge & Malling Borough Council,6/14/2023,0022027807/5,22027807, 14864.33,Urbaser LTD,01718800,,Contract Payments,Garden Waste Recycling,H34ST000054001,
http://statistics.data.gov.uk/id/local-authority/29UP,Tonbridge & Malling Borough Council,6/14/2023,0022027808/1,22027808, 2774.85,Wybone Ltd,00815800,,Purchases,Street Scene,H23SD000040101,220003332
http://statistics.data.gov.uk/id/local-authority/29UP,Tonbridge & Malling Borough Council,6/14/2023,0022027808/2,22027808, 1259.85,Wybone Ltd,00815800,,Purchases,Street Scene,H23SD000040101,220003332
http://statistics.data.gov.uk/id/local-authority/29UP,Tonbridge & Malling Borough Council,6/14/2023,0022027808/3,22027808, 16.09,Wybone Ltd,00815800,,Purchases,Street Scene,H23SD000040101,220003332
http://statistics.data.gov.uk/id/local-authority/29UP,Tonbridge & Malling Borough Council,6/14/2023,0022027809/1,22027809, 10136.00,SPA CAFFE LIMITED,00127100,,Temporary Accommodation,Homelessness,C01AA000044051,
http://statistics.data.gov.uk/id/local-authority/29UP,Tonbridge & Malling Borough Council,6/14/2023,0022027810/1,22027810, 24502.00,Social & Community Care,01768400,,Temporary Accommodation,Homelessness,C01AA000044051,
http://statistics.data.gov.uk/id/local-authority/29UP,Tonbridge & Malling Borough Council,6/14/2023,0022027811/1,22027811, 2615.82,The Care Group-Housing & Care Trust,01699600,,Temporary Accommodation,Homelessness,C01AA000044051,
http://statistics.data.gov.uk/id/local-authority/29UP,Tonbridge & Malling Borough Council,6/14/2023,0022027812/1,22027812, 11922.00,Smart Property Professionals,01815100,,Temporary Accommodation,Homelessness,C01AA000044051,
http://statistics.data.gov.uk/id/local-authority/29UP,Tonbridge & Malling Borough Council,6/14/2023,0022027813/1,22027813, 2165.00,Simply Rented Ltd ,01691400,,Temporary Accommodation,Homelessness,C01AA000044051,
http://statistics.data.gov.uk/id/local-authority/29UP,Tonbridge & Malling Borough Council,6/14/2023,0022027814/1,22027814, 1705.00,Simon Niblett Lettings,00072600,,Temporary Accommodation,Homelessness,C01AA000044051,
http://statistics.data.gov.uk/id/local-authority/29UP,Tonbridge & Malling Borough Council,6/14/2023,0022027815/1,22027815, 9990.00,Simon Niblett Lettings,00072600,,Temporary Accommodation,Homelessness,C01AA000044051,
http://statistics.data.gov.uk/id/local-authority/29UP,Tonbridge & Malling Borough Council,6/14/2023,0022027816/1,22027816, 4769.00,Premier Property Providers,01785400,,Temporary Accommodation,Homelessness,C01AA000044051,
http://statistics.data.gov.uk/id/local-authority/29UP,Tonbridge & Malling Borough Council,6/14/2023,0022027817/3,22027817, 1133.54,Premier Inn,01217400,,Temporary Accommodation,Homelessness,C01AA000044051,
http://statistics.data.gov.uk/id/local-authority/29UP,Tonbridge & Malling Borough Council,6/14/2023,0022027818/3,22027818, 8.10,Octopus Energy,01895300,,Electricity,Homelessness,C01AATNHS21002,
http://statistics.data.gov.uk/id/local-authority/29UP,Tonbridge & Malling Borough Council,6/14/2023,0022027819/1,22027819, 3475.70,Town & Country Housing Group,01385400,,Other Expenses,Disabled Facilities Grant Mand,P03AC000009908,
http://statistics.data.gov.uk/id/local-authority/29UP,Tonbridge & Malling Borough Council,6/14/2023,0022027820/1,22027820, 8319.75,Lifestyle (KENT) LTD,01348800,,Other Expenses,Disabled Facilities Grant Mand,P03AC000009908,
http://statistics.data.gov.uk/id/local-authority/29UP,Tonbridge & Malling Borough Council,6/14/2023,0022027821/1,22027821, 19.57,Maidstone Borough Council,01173700,,Council Tax,Homelessness,C01AAMAUN23002,
http://statistics.data.gov.uk/id/local-authority/29UP,Tonbridge & Malling Borough Council,6/14/2023,0022027822/1,22027822, 340.00,Town & Country Housing Group,01385400,,Countywide DFG Project,Private Sector Housing Renewal,C03BD000044031,
http://statistics.data.gov.uk/id/local-authority/29UP,Tonbridge & Malling Borough Council,6/14/2023,0022027823/1,22027823, 6479.00,Less Homeless Ltd,01489300,,Temporary Accommodation,Homelessness,C01AA000044051,
http://statistics.data.gov.uk/id/local-authority/29UP,Tonbridge & Malling Borough Council,6/14/2023,0022027824/1,22027824, 1891.00,Kent Housing,01503200,,Temporary Accommodation,Homelessness,C01AA000044051,
http://statistics.data.gov.uk/id/local-authority/29UP,Tonbridge & Malling Borough Council,6/14/2023,0022027825/1,22027825, 9067.50,Kent Accommodation Ltd,01722000,,Temporary Accommodation,Homelessness,C01AA000044051,
http://statistics.data.gov.uk/id/local-authority/29UP,Tonbridge & Malling Borough Council,6/14/2023,0022027827/3,22027827, 513.54,British Gas Services LTD,01260000,,Electricity,Homelessness,C01AAMAUN21002,
http://statistics.data.gov.uk/id/local-authority/29UP,Tonbridge & Malling Borough Council,6/14/2023,0022027828/3,22027828, 331.30,British Gas Services LTD,01260000,,Electricity,Homelessness,C01AAMAUN21002,
http://statistics.data.gov.uk/id/local-authority/29UP,Tonbridge & Malling Borough Council,6/14/2023,0022027829/1,22027829, 34872.00,Paramount Independent Property Suppliers,01595300,,Temporary Accommodation,Homelessness,C01AA000044051,
http://statistics.data.gov.uk/id/local-authority/29UP,Tonbridge & Malling Borough Council,6/14/2023,0022027833/1,22027833, 2716.00,Enviro Technology Services PLC,01461300,,Maintenance - General,Environmental Protection,H32SN000040135,220003352
http://statistics.data.gov.uk/id/local-authority/29UP,Tonbridge & Malling Borough Council,6/14/2023,0022027834/1,22027834, 96.36,E.ON - Next,01790900,,Electricity,Homelessness,C01AATNPR21002,
http://statistics.data.gov.uk/id/local-authority/29UP,Tonbridge & Malling Borough Council,6/14/2023,0022027835/1,22027835, 245.00,Countrystyle Group,00835900,781981681,Collection of Card,Dry Recycling,H34SR000054008,
http://statistics.data.gov.uk/id/local-authority/29UP,Tonbridge & Malling Borough Council,6/14/2023,0022027836/1,22027836, 171.08,British Gas,01148500,,Electricity,Homelessness,C01AAMAUN21002,
http://statistics.data.gov.uk/id/local-authority/29UP,Tonbridge & Malling Borough Council,6/14/2023,0022027837/1,22027837, 13.51,Amazon EU SARL,01738400,,Stationery,Env Hlth & Hsg Sals&Overheads,D01AVDV0343003,
http://statistics.data.gov.uk/id/local-authority/29UP,Tonbridge & Malling Borough Council,6/14/2023,0022027838/1,22027838, 174.99,Amazon EU SARL,01738400,,Other Expenses,Dry Recycling,H34SR000048010,
http://statistics.data.gov.uk/id/local-authority/29UP,Tonbridge & Malling Borough Council,6/14/2023,0022027839/1,22027839, 1116.00,1st  Steps Housing Kent,01716100,,Temporary Accommodation,Homelessness,C01AA000044051,
http://statistics.data.gov.uk/id/local-authority/29UP,Tonbridge & Malling Borough Council,6/14/2023,0022027840/1,22027840, 3957.58,Town & Country Housing Group,01385400,,Other Expenses,Disabled Facilities Grant Mand,P03AC000009908,
http://statistics.data.gov.uk/id/local-authority/29UP,Tonbridge & Malling Borough Council,6/14/2023,0022027841/1,22027841, 10646.42,Lifestyle (KENT) LTD,01348800,,Other Expenses,Disabled Facilities Grant Mand,P03AC000009908,
http://statistics.data.gov.uk/id/local-authority/29UP,Tonbridge & Malling Borough Council,6/14/2023,0022027842/1,22027842, 15396.00,Gainsborough Healthcare Group,01903000,,Other Expenses,Disabled Facilities Grant Mand,P03AC000009908,
http://statistics.data.gov.uk/id/local-authority/29UP,Tonbridge & Malling Borough Council,6/14/2023,0022027843/1,22027843, 5974.68,Town & Country Housing Group,01385400,,Countywide DFG Project,Private Sector Housing Renewal,C03BD000044031,
http://statistics.data.gov.uk/id/local-authority/29UP,Tonbridge & Malling Borough Council,6/14/2023,0022027844/1,22027844, 360.00,Town & Country Housing Group,01385400,,Countywide DFG Project,Private Sector Housing Renewal,C03BD000044031,
http://statistics.data.gov.uk/id/local-authority/29UP,Tonbridge & Malling Borough Council,6/14/2023,0022027845/1,22027845, 16729.08,Town & Country Housing Group,01385400,,Countywide DFG Project,Private Sector Housing Renewal,C03BD000044031,
http://statistics.data.gov.uk/id/local-authority/29UP,Tonbridge & Malling Borough Council,6/14/2023,0022027846/1,22027846, 4818.00,House to Home Lettings Ltd ,01647600,,Temporary Accommodation,Homelessness,C01AA000044051,
http://statistics.data.gov.uk/id/local-authority/29UP,Tonbridge & Malling Borough Council,6/14/2023,0031019494/3,31019494, 7.48,REDACTED PERSONAL DATA,01902000,,Purchases,Parking Off-Street,E10HA000040101,
http://statistics.data.gov.uk/id/local-authority/29UP,Tonbridge & Malling Borough Council,6/14/2023,0031019494/4,31019494, 7.48,REDACTED PERSONAL DATA,01902000,,Purchases,Parking On-Street,E10HD000040101,
http://statistics.data.gov.uk/id/local-authority/29UP,Tonbridge & Malling Borough Council,6/14/2023,0031019498/3,31019498, 4327.50,G4S Cash Solutions ( UK ) Ltd,01398400,,Cash Collection,Parking Off-Street,E10HA000044007,
http://statistics.data.gov.uk/id/local-authority/29UP,Tonbridge & Malling Borough Council,6/14/2023,0031019499/3,31019499, 3876.40,G4S Cash Solutions ( UK ) Ltd,01398400,,Cash Collection,Parking Off-Street,E10HA000044007,
http://statistics.data.gov.uk/id/local-authority/29UP,Tonbridge & Malling Borough Council,6/14/2023,0031019500/3,31019500, 4177.50,G4S Cash Solutions ( UK ) Ltd,01398400,,Cash Collection,Parking Off-Street,E10HA000044007,
http://statistics.data.gov.uk/id/local-authority/29UP,Tonbridge & Malling Borough Council,6/14/2023,0031019501/3,31019501, 3270.00,G4S Cash Solutions ( UK ) Ltd,01398400,,Cash Collection,Parking Off-Street,E10HA000044007,
http://statistics.data.gov.uk/id/local-authority/29UP,Tonbridge & Malling Borough Council,6/14/2023,0031019502/3,31019502, 3952.50,G4S Cash Solutions ( UK ) Ltd,01398400,,Cash Collection,Parking Off-Street,E10HA000044007,
http://statistics.data.gov.uk/id/local-authority/29UP,Tonbridge & Malling Borough Council,6/14/2023,0031019503/3,31019503, 3727.50,G4S Cash Solutions ( UK ) Ltd,01398400,,Cash Collection,Parking Off-Street,E10HA000044007,
http://statistics.data.gov.uk/id/local-authority/29UP,Tonbridge & Malling Borough Council,6/14/2023,0031019504/3,31019504, 4440.00,G4S Cash Solutions ( UK ) Ltd,01398400,,Cash Collection,Parking Off-Street,E10HA000044007,
http://statistics.data.gov.uk/id/local-authority/29UP,Tonbridge & Malling Borough Council,6/14/2023,0031019510/1,31019510, 710.00,Archway Highway Services Ltd,01398000,,Car Parking Action Plan,Parking On-Street,E10HD000020801,310043061
http://statistics.data.gov.uk/id/local-authority/29UP,Tonbridge & Malling Borough Council,6/14/2023,0031019510/2,31019510, 308.75,Archway Highway Services Ltd,01398000,,Car Parking Action Plan,Parking On-Street,E10HD000020801,310043061
http://statistics.data.gov.uk/id/local-authority/29UP,Tonbridge & Malling Borough Council,6/14/2023,0032010259/3,32010259, 1624.50,Vivid Resourcing,01773700,,Temporary Staff,Planning Sals&Overheads,D01AJDJ0111300,
http://statistics.data.gov.uk/id/local-authority/29UP,Tonbridge & Malling Borough Council,6/14/2023,0032010260/1,32010260, 3105.00,Tetlow King Planning Ltd,01290900,,Temporary Staff,Planning Sals&Overheads,D01AJDJ0111300,320003504
http://statistics.data.gov.uk/id/local-authority/29UP,Tonbridge & Malling Borough Council,6/14/2023,0032010261/3,32010261, 1058.16,The Oyster Partnership,01196400,,Temporary Staff,Planning Sals&Overheads,D01AJDJ0111300,
http://statistics.data.gov.uk/id/local-authority/29UP,Tonbridge & Malling Borough Council,6/14/2023,0032010262/3,32010262, 1291.50,The Oyster Partnership,01196400,,Temporary Staff,Planning Sals&Overheads,D01AJDJ0111300,
http://statistics.data.gov.uk/id/local-authority/29UP,Tonbridge & Malling Borough Council,6/14/2023,0032010263/3,32010263, 2064.35,Hays Specialist Recruitment Limited,01879200,773695871,Temporary Staff,Planning Sals&Overheads,D01AJDJ0111300,
http://statistics.data.gov.uk/id/local-authority/29UP,Tonbridge & Malling Borough Council,6/14/2023,0032010264/1,32010264, 1800.00,G2 Recruitment Solutions,01786000,,Temporary Staff,Planning Sals&Overheads,D01AJDJ0011300,
http://statistics.data.gov.uk/id/local-authority/29UP,Tonbridge & Malling Borough Council,6/14/2023,0032010265/1,32010265, 1376.00,Carrington West Limited,01844500,,Temporary Staff,Planning Sals&Overheads,D01AJDJ0111300,
http://statistics.data.gov.uk/id/local-authority/29UP,Tonbridge & Malling Borough Council,6/14/2023,0032010266/1,32010266, 2206.60,Hays Specialist Recruitment Limited,01879200,773695871,Temporary Staff,Planning Sals&Overheads,D01AJDJ0311300,
http://statistics.data.gov.uk/id/local-authority/29UP,Tonbridge & Malling Borough Council,6/14/2023,0041035571/10,41035571, 9.00,O2 UK Ltd,01268000,,Mobile Telephones,Admin & Prop Sals&Overheads,D01AADA1245013,
http://statistics.data.gov.uk/id/local-authority/29UP,Tonbridge & Malling Borough Council,6/14/2023,0041035571/11,41035571, 3.00,O2 UK Ltd,01268000,,Mobile Telephones,Chief Exec Sals&Overheads,D01ACDC0045013,
http://statistics.data.gov.uk/id/local-authority/29UP,Tonbridge & Malling Borough Council,6/14/2023,0041035571/12,41035571, 3.00,O2 UK Ltd,01268000,,Mobile Telephones,Chief Exec Sals&Overheads,D01ACDC0145013,
http://statistics.data.gov.uk/id/local-authority/29UP,Tonbridge & Malling Borough Council,6/14/2023,0041035571/13,41035571, 3.00,O2 UK Ltd,01268000,,Mobile Telephones,Chief Exec Sals&Overheads,D01ACDC0245013,
http://statistics.data.gov.uk/id/local-authority/29UP,Tonbridge & Malling Borough Council,6/14/2023,0041035571/14,41035571, 3.00,O2 UK Ltd,01268000,,Mobile Telephones,Technical Sals&Overheads,D01AEDE0045013,
http://statistics.data.gov.uk/id/local-authority/29UP,Tonbridge & Malling Borough Council,6/14/2023,0041035571/15,41035571, 6.00,O2 UK Ltd,01268000,,Mobile Telephones,Technical Sals&Overheads,D01AEDE0145013,
http://statistics.data.gov.uk/id/local-authority/29UP,Tonbridge & Malling Borough Council,6/14/2023,0041035571/16,41035571, 9.30,O2 UK Ltd,01268000,,Mobile Telephones,Technical Sals&Overheads,D01AEDE0245013,
http://statistics.data.gov.uk/id/local-authority/29UP,Tonbridge & Malling Borough Council,6/14/2023,0041035571/17,41035571, 42.10,O2 UK Ltd,01268000,,Mobile Telephones,Technical Sals&Overheads,D01AEDE0445013,
http://statistics.data.gov.uk/id/local-authority/29UP,Tonbridge & Malling Borough Council,6/14/2023,0041035571/18,41035571, 3.00,O2 UK Ltd,01268000,,Mobile Telephones,Technical Sals&Overheads,D01AEDE0545013,
http://statistics.data.gov.uk/id/local-authority/29UP,Tonbridge & Malling Borough Council,6/14/2023,0041035571/19,41035571, 12.00,O2 UK Ltd,01268000,,Mobile Telephones,Finance Sals&Overheads,D01AFDF0045013,
http://statistics.data.gov.uk/id/local-authority/29UP,Tonbridge & Malling Borough Council,6/14/2023,0041035571/20,41035571, 6.00,O2 UK Ltd,01268000,,Mobile Telephones,Finance Sals&Overheads,D01AFDF0945013,
http://statistics.data.gov.uk/id/local-authority/29UP,Tonbridge & Malling Borough Council,6/14/2023,0041035571/21,41035571, 12.00,O2 UK Ltd,01268000,,Mobile Telephones,St Scene & Leis Sals&Overheads,D01AGDG0045013,
http://statistics.data.gov.uk/id/local-authority/29UP,Tonbridge & Malling Borough Council,6/14/2023,0041035571/22,41035571, 12.00,O2 UK Ltd,01268000,,Mobile Telephones,St Scene & Leis Sals&Overheads,D01AGDG0145013,
http://statistics.data.gov.uk/id/local-authority/29UP,Tonbridge & Malling Borough Council,6/14/2023,0041035571/23,41035571, 9.00,O2 UK Ltd,01268000,,Mobile Telephones,St Scene & Leis Sals&Overheads,D01AGDG0445013,
http://statistics.data.gov.uk/id/local-authority/29UP,Tonbridge & Malling Borough Council,6/14/2023,0041035571/24,41035571, 36.20,O2 UK Ltd,01268000,,Mobile Telephones,St Scene & Leis Sals&Overheads,D01AGDG2045013,
http://statistics.data.gov.uk/id/local-authority/29UP,Tonbridge & Malling Borough Council,6/14/2023,0041035571/25,41035571, 9.00,O2 UK Ltd,01268000,,Mobile Telephones,Planning Sals&Overheads,D01AJDJ0045013,
http://statistics.data.gov.uk/id/local-authority/29UP,Tonbridge & Malling Borough Council,6/14/2023,0041035571/26,41035571, 12.00,O2 UK Ltd,01268000,,Mobile Telephones,Planning Sals&Overheads,D01AJDJ0245013,
http://statistics.data.gov.uk/id/local-authority/29UP,Tonbridge & Malling Borough Council,6/14/2023,0041035571/27,41035571, 6.00,O2 UK Ltd,01268000,,Mobile Telephones,Legal Sals&Overheads,D01ARDR0045013,
http://statistics.data.gov.uk/id/local-authority/29UP,Tonbridge & Malling Borough Council,6/14/2023,0041035571/28,41035571, 12.00,O2 UK Ltd,01268000,,Mobile Telephones,Legal Sals&Overheads,D01ARDR0045013,
http://statistics.data.gov.uk/id/local-authority/29UP,Tonbridge & Malling Borough Council,6/14/2023,0041035571/29,41035571, 3.00,O2 UK Ltd,01268000,,Mobile Telephones,Legal Sals&Overheads,D01ARDR0745013,
http://statistics.data.gov.uk/id/local-authority/29UP,Tonbridge & Malling Borough Council,6/14/2023,0041035571/30,41035571, 3.00,O2 UK Ltd,01268000,,Mobile Telephones,Env Hlth & Hsg Sals&Overheads,D01AVDV0045013,
http://statistics.data.gov.uk/id/local-authority/29UP,Tonbridge & Malling Borough Council,6/14/2023,0041035571/31,41035571, 9.00,O2 UK Ltd,01268000,,Mobile Telephones,Env Hlth & Hsg Sals&Overheads,D01AVDV0145013,
http://statistics.data.gov.uk/id/local-authority/29UP,Tonbridge & Malling Borough Council,6/14/2023,0041035571/32,41035571, 6.00,O2 UK Ltd,01268000,,Mobile Telephones,Env Hlth & Hsg Sals&Overheads,D01AVDV0345013,
http://statistics.data.gov.uk/id/local-authority/29UP,Tonbridge & Malling Borough Council,6/14/2023,0041035571/33,41035571, 3.00,O2 UK Ltd,01268000,,Mobile Telephones,Env Hlth & Hsg Sals&Overheads,D01AVDV0745013,
http://statistics.data.gov.uk/id/local-authority/29UP,Tonbridge & Malling Borough Council,6/14/2023,0041035571/34,41035571, 6.00,O2 UK Ltd,01268000,,Mobile Telephones,Env Hlth & Hsg Sals&Overheads,D01AVDV0945013,
http://statistics.data.gov.uk/id/local-authority/29UP,Tonbridge & Malling Borough Council,6/14/2023,0041035571/35,41035571, 10.10,O2 UK Ltd,01268000,,Mobile Telephones,Customer Services,D23CS000045013,
http://statistics.data.gov.uk/id/local-authority/29UP,Tonbridge & Malling Borough Council,6/14/2023,0041035571/36,41035571, 3.00,O2 UK Ltd,01268000,,Mobile Telephones,Tonbridge Gateway,D23TG000045013,
http://statistics.data.gov.uk/id/local-authority/29UP,Tonbridge & Malling Borough Council,6/14/2023,0041035571/37,41035571, 627.00,O2 UK Ltd,01268000,,Leased Lines & Modems,Information Technology,D27KD000045011,
http://statistics.data.gov.uk/id/local-authority/29UP,Tonbridge & Malling Borough Council,6/14/2023,0041035571/38,41035571, 3.00,O2 UK Ltd,01268000,,Mobile Telephones,Mayoral & Other Member Support,D29LX000045013,
http://statistics.data.gov.uk/id/local-authority/29UP,Tonbridge & Malling Borough Council,6/14/2023,0041035571/39,41035571, 3.00,O2 UK Ltd,01268000,,Emergency Out of Hours Recharg,Refuse Collection,H20SA000045030,
http://statistics.data.gov.uk/id/local-authority/29UP,Tonbridge & Malling Borough Council,6/14/2023,0041035571/40,41035571, 3.00,O2 UK Ltd,01268000,,Emergency Out of Hours Recharg,Street Scene,H23SD000045030,
http://statistics.data.gov.uk/id/local-authority/29UP,Tonbridge & Malling Borough Council,6/14/2023,0041035571/7,41035571, 3.00,O2 UK Ltd,01268000,,Telephones - General,Open Spaces & Amenity Areas,B22LE000045010,
http://statistics.data.gov.uk/id/local-authority/29UP,Tonbridge & Malling Borough Council,6/14/2023,0041035571/8,41035571, 3.00,O2 UK Ltd,01268000,,Mobile Telephones,Admin & Prop Sals&Overheads,D01AADA0045013,
http://statistics.data.gov.uk/id/local-authority/29UP,Tonbridge & Malling Borough Council,6/14/2023,0041035571/9,41035571, 3.00,O2 UK Ltd,01268000,,Mobile Telephones,Admin & Prop Sals&Overheads,D01AADA1045013,
http://statistics.data.gov.uk/id/local-authority/29UP,Tonbridge & Malling Borough Council,6/14/2023,0041035575/1,41035575, 3000.00,TransUnion International Limited,01493000,,Other Expenses,Local Revenue & NNDR Collect,D41QA000048010,
http://statistics.data.gov.uk/id/local-authority/29UP,Tonbridge & Malling Borough Council,6/14/2023,0041035576/1,41035576, 1081.14,Morgan Hunt UK Ltd,01086900,,Temporary Staff,Finance Sals&Overheads,D01AFDF1111300,
http://statistics.data.gov.uk/id/local-authority/29UP,Tonbridge & Malling Borough Council,6/14/2023,0041035577/1,41035577, 80.00,WorldPay Ltd,01402000,991280207,Credit Card Commission,Banking Arrangements,D43QK000044082,
http://statistics.data.gov.uk/id/local-authority/29UP,Tonbridge & Malling Borough Council,6/14/2023,0041035577/2,41035577, 73.84,WorldPay Ltd,01402000,991280207,Credit Card Commission,Banking Arrangements,D43QK000044082,
http://statistics.data.gov.uk/id/local-authority/29UP,Tonbridge & Malling Borough Council,6/14/2023,0041035577/3,41035577, 0.40,WorldPay Ltd,01402000,991280207,Credit Card Commission,Banking Arrangements,D43QK000044082,
http://statistics.data.gov.uk/id/local-authority/29UP,Tonbridge & Malling Borough Council,6/14/2023,0041035578/1,41035578, 80.00,WorldPay Ltd,01402000,991280207,Credit Card Commission,Banking Arrangements,D43QK000044082,
http://statistics.data.gov.uk/id/local-authority/29UP,Tonbridge & Malling Borough Council,6/14/2023,0041035578/2,41035578, 96.08,WorldPay Ltd,01402000,991280207,Credit Card Commission,Banking Arrangements,D43QK000044082,
http://statistics.data.gov.uk/id/local-authority/29UP,Tonbridge & Malling Borough Council,6/14/2023,0041035578/3,41035578, 0.88,WorldPay Ltd,01402000,991280207,Credit Card Commission,Banking Arrangements,D43QK000044082,
http://statistics.data.gov.uk/id/local-authority/29UP,Tonbridge & Malling Borough Council,6/14/2023,0041035579/1,41035579, 80.00,WorldPay Ltd,01402000,991280207,Credit Card Commission,Banking Arrangements,D43QK000044082,
http://statistics.data.gov.uk/id/local-authority/29UP,Tonbridge & Malling Borough Council,6/14/2023,0041035579/2,41035579, 177.44,WorldPay Ltd,01402000,991280207,Credit Card Commission,Banking Arrangements,D43QK000044082,
http://statistics.data.gov.uk/id/local-authority/29UP,Tonbridge & Malling Borough Council,6/14/2023,0041035582/1,41035582, 2437.04,Rundle & Co Ltd,00087200,,Bailiffs Commission,Local Revenue & NNDR Collect,D41QA000044075,
http://statistics.data.gov.uk/id/local-authority/29UP,Tonbridge & Malling Borough Council,6/14/2023,0041035583/1,41035583, 46.66,Rundle & Co Ltd,00087200,,Bailiffs Commission,Local Revenue & NNDR Collect,D41QA000044075,
http://statistics.data.gov.uk/id/local-authority/29UP,Tonbridge & Malling Borough Council,6/14/2023,0051008819/1,51008819, 2500.00,LABC Training,01180300,,Ext Fees/Prof & Tech,Training,D10DCDJ0213561,510010634
http://statistics.data.gov.uk/id/local-authority/29UP,Tonbridge & Malling Borough Council,6/16/2023,0041035599/1,41035599, 68.04,Allpay Limited,01816500,,Giro / Swipe Card Charges,Local Revenue & NNDR Collect,D41QA000044083,
http://statistics.data.gov.uk/id/local-authority/29UP,Tonbridge & Malling Borough Council,6/16/2023,0041035599/2,41035599, 0.70,Allpay Limited,01816500,,Giro / Swipe Card Charges,Local Revenue & NNDR Collect,D41QA000044083,
http://statistics.data.gov.uk/id/local-authority/29UP,Tonbridge & Malling Borough Council,6/16/2023,0041035600/1,41035600, 220.35,National Westminster Bank Plc,00069400,,Bank Charges,Banking Arrangements,D43QK000044222,
http://statistics.data.gov.uk/id/local-authority/29UP,Tonbridge & Malling Borough Council,6/21/2023,0011046284/1,11046284, 660.00,G C Industrial Heating Services,00578100,,BRREP Servicing - boilers,Tonbridge Swimming Pool,M15HBP20001929,
http://statistics.data.gov.uk/id/local-authority/29UP,Tonbridge & Malling Borough Council,6/21/2023,0011046285/1,11046285, 1561.36,The Oyster Partnership,01196400,,Temporary Staff,Admin & Prop Sals&Overheads,D01AADA1111300,
http://statistics.data.gov.uk/id/local-authority/29UP,Tonbridge & Malling Borough Council,6/21/2023,0011046286/1,11046286, 250.00,BML Building Services Ltd,01505000,,BRREP Drain and gully cleaning,PC - General,M15JAP20001975,
http://statistics.data.gov.uk/id/local-authority/29UP,Tonbridge & Malling Borough Council,6/21/2023,0011046287/1,11046287, 2020.65,Royal Mail,00086200,,Purchases,Mailsort Stock Account,K37BR000001002,
http://statistics.data.gov.uk/id/local-authority/29UP,Tonbridge & Malling Borough Council,6/21/2023,0011046287/2,11046287, 2.49,Royal Mail,00086200,,Purchases,Mailsort Stock Account,K37BR000001002,
http://statistics.data.gov.uk/id/local-authority/29UP,Tonbridge & Malling Borough Council,6/21/2023,0011046288/1,11046288, 4150.97,Royal Mail,00086200,,Purchases,Mailsort Stock Account,K37BR000001002,
http://statistics.data.gov.uk/id/local-authority/29UP,Tonbridge & Malling Borough Council,6/21/2023,0011046288/2,11046288, 33.57,Royal Mail,00086200,,Purchases,Mailsort Stock Account,K37BR000001002,
http://statistics.data.gov.uk/id/local-authority/29UP,Tonbridge & Malling Borough Council,6/21/2023,0011046289/1,11046289, 2697.30,TMS Protection Ltd,01744300,,Office Security,Tonbridge Gateway,D23TG000044047,
http://statistics.data.gov.uk/id/local-authority/29UP,Tonbridge & Malling Borough Council,6/21/2023,0011046289/2,11046289, 1903.50,TMS Protection Ltd,01744300,,Office Security,Tonbridge Gateway,D23TG000044047,
http://statistics.data.gov.uk/id/local-authority/29UP,Tonbridge & Malling Borough Council,6/21/2023,0011046290/1,11046290, 90.56,Royal Mail,00086200,,Postages - Business Reply,Conduct of Elections,D31MG000045003,
http://statistics.data.gov.uk/id/local-authority/29UP,Tonbridge & Malling Borough Council,6/21/2023,0011046291/1,11046291, 1550.65,Court Lodge Purchases,01903200,,Economic Development & Regen,Eco Dev & Reg Gen Bus Support,D52TD000047027,
http://statistics.data.gov.uk/id/local-authority/29UP,Tonbridge & Malling Borough Council,6/21/2023,0011046293/1,11046293, 2684.00,Association of Electoral Administrators,01652500,,Polling Fees,Conduct of Elections,D31MG000044067,
http://statistics.data.gov.uk/id/local-authority/29UP,Tonbridge & Malling Borough Council,6/21/2023,0011046294/1,11046294, 23.37,Oasis Group  - Box-It South East,00966800,931579211,Purchases,Electoral Registration,D31MF000040101,
http://statistics.data.gov.uk/id/local-authority/29UP,Tonbridge & Malling Borough Council,6/21/2023,0011046295/1,11046295, 2500.00,Thomson Snell & Passmore,00101700,,Legal Fees,Legal Sals&Overheads,D01ARDR0044002,
http://statistics.data.gov.uk/id/local-authority/29UP,Tonbridge & Malling Borough Council,6/21/2023,0011046296/1,11046296, 1462.00,Thomson Snell & Passmore,00101700,,Legal Fees,Legal Sals&Overheads,D01ARDR0044002,
http://statistics.data.gov.uk/id/local-authority/29UP,Tonbridge & Malling Borough Council,6/21/2023,0011046297/1,11046297, 1360.00,Thomson Snell & Passmore,00101700,,Legal Fees,Legal Sals&Overheads,D01ARDR0044002,
http://statistics.data.gov.uk/id/local-authority/29UP,Tonbridge & Malling Borough Council,6/21/2023,0011046298/1,11046298, 1240.00,Thomson Snell & Passmore,00101700,,Legal Fees,Legal Sals&Overheads,D01ARDR0044002,
http://statistics.data.gov.uk/id/local-authority/29UP,Tonbridge & Malling Borough Council,6/21/2023,0011046299/1,11046299, 1561.36,The Oyster Partnership,01196400,,Temporary Staff,Admin & Prop Sals&Overheads,D01AADA1111300,
http://statistics.data.gov.uk/id/local-authority/29UP,Tonbridge & Malling Borough Council,6/21/2023,0011046300/1,11046300, 1204.40,Sellick Partnership Group Limited,01336800,,Temporary Staff,Legal Sals&Overheads,D01ARDR0011300,
http://statistics.data.gov.uk/id/local-authority/29UP,Tonbridge & Malling Borough Council,6/21/2023,0011046301/1,11046301, 1644.03,Sellick Partnership Group Limited,01336800,,Temporary Staff,Legal Sals&Overheads,D01ARDR0011300,
http://statistics.data.gov.uk/id/local-authority/29UP,Tonbridge & Malling Borough Council,6/21/2023,0011046302/1,11046302, 20.35,Royal Mail,00086200,,Purchases,Mailsort Stock Account,K37BR000001002,
http://statistics.data.gov.uk/id/local-authority/29UP,Tonbridge & Malling Borough Council,6/21/2023,0011046302/2,11046302, 6.30,Royal Mail,00086200,,Purchases,Mailsort Stock Account,K37BR000001002,
http://statistics.data.gov.uk/id/local-authority/29UP,Tonbridge & Malling Borough Council,6/21/2023,0011046302/3,11046302, 2633.08,Royal Mail,00086200,,Purchases,Mailsort Stock Account,K37BR000001002,
http://statistics.data.gov.uk/id/local-authority/29UP,Tonbridge & Malling Borough Council,6/21/2023,0011046303/1,11046303, 336.00,BML Building Services Ltd,01505000,,BRREP Response - General,Leis Man Poult Wood Golf Centr,M15HEP50001997,
http://statistics.data.gov.uk/id/local-authority/29UP,Tonbridge & Malling Borough Council,6/21/2023,0011046304/1,11046304, 128.50,BML Building Services Ltd,01505000,,BRREP Response - General,Ton Sportsgrnd Bldgs / Toilets,M15HCP50001997,
http://statistics.data.gov.uk/id/local-authority/29UP,Tonbridge & Malling Borough Council,6/21/2023,0011046305/1,11046305, 79.00,BML Building Services Ltd,01505000,,BRREP Response - General,PC - General,M15JAP50001997,
http://statistics.data.gov.uk/id/local-authority/29UP,Tonbridge & Malling Borough Council,6/21/2023,0011046306/1,11046306, 350.00,BML Building Services Ltd,01505000,,BRREP Window/door repairs,Larkfield Leisure Centre,M15HDP20001919,
http://statistics.data.gov.uk/id/local-authority/29UP,Tonbridge & Malling Borough Council,6/21/2023,0011046307/1,11046307, 240.00,G C Industrial Heating Services,00578100,,BRREP Servicing - Sadia Tea,Gibson Building East,M15KGP20001932,
http://statistics.data.gov.uk/id/local-authority/29UP,Tonbridge & Malling Borough Council,6/21/2023,0011046308/1,11046308, 460.00,Robins Paper Bag Co. Ltd,00354000,,Purchases,TIC Stock Account,K18AX000001002,
http://statistics.data.gov.uk/id/local-authority/29UP,Tonbridge & Malling Borough Council,6/21/2023,0011046309/1,11046309, 1646.12,Venn Group Ltd,00914300,,Temporary Staff,Legal Sals&Overheads,D01ARDR0011300,
http://statistics.data.gov.uk/id/local-authority/29UP,Tonbridge & Malling Borough Council,6/21/2023,0011046310/1,11046310, 362.00,Eryl Davies Veterinary Surgeon,01657600,,Professional Fees,Licences - Fee Paying,H27SH000044001,
http://statistics.data.gov.uk/id/local-authority/29UP,Tonbridge & Malling Borough Council,6/21/2023,0011046311/1,11046311, 1204.40,Sellick Partnership Group Limited,01336800,,Temporary Staff,Legal Sals&Overheads,D01ARDR0011300,
http://statistics.data.gov.uk/id/local-authority/29UP,Tonbridge & Malling Borough Council,6/21/2023,0011046312/1,11046312, 1217.80,Sellick Partnership Group Limited,01336800,,Temporary Staff,Legal Sals&Overheads,D01ARDR0011300,
http://statistics.data.gov.uk/id/local-authority/29UP,Tonbridge & Malling Borough Council,6/21/2023,0011046313/1,11046313, 266.00,Disclosure & Barring Service,00865900,,Professional Fees,Licences - Fee Paying,H27SH000044001,
http://statistics.data.gov.uk/id/local-authority/29UP,Tonbridge & Malling Borough Council,6/21/2023,0011046314/1,11046314, 600.00,EW Legal Costing Ltd,01830000,,Legal Fees,Homelessness,C01AA000044002,
http://statistics.data.gov.uk/id/local-authority/29UP,Tonbridge & Malling Borough Council,6/21/2023,0011046315/3,11046315, 1217.80,Sellick Partnership Group Limited,01336800,,Temporary Staff,Legal Sals&Overheads,D01ARDR0011300,
http://statistics.data.gov.uk/id/local-authority/29UP,Tonbridge & Malling Borough Council,6/21/2023,0011046316/1,11046316, 500.00,Mark West - Waste Not Want Not,01755100,,Miscellaneous Services,Cleaning & Security,D21FDDD5044015,
http://statistics.data.gov.uk/id/local-authority/29UP,Tonbridge & Malling Borough Council,6/21/2023,0011046317/3,11046317, 1145.71,KCS - KCC,00054200,,Estate Management Charge,Land Review,D40PS000020400,
http://statistics.data.gov.uk/id/local-authority/29UP,Tonbridge & Malling Borough Council,6/21/2023,0011046318/1,11046318, 115.89,H.M. Revenue & Customs,00048400,,Repairs & Mtce to Buildings,Homelessness,C01AATNHS20101,
http://statistics.data.gov.uk/id/local-authority/29UP,Tonbridge & Malling Borough Council,6/21/2023,0011046319/3,11046319, 3000.00,Cornerstones Barristers,01359100,,Other Planning Enq - Legal Cos,Legal Sals&Overheads,D01ARDR0044146,
http://statistics.data.gov.uk/id/local-authority/29UP,Tonbridge & Malling Borough Council,6/21/2023,0011046320/1,11046320, 1365.00,Security & Electronic Solutions Ltd,01379500,,BRREP Servicing - CCTV,Tonbridge Swimming Pool,M15HBP20001952,110070105
http://statistics.data.gov.uk/id/local-authority/29UP,Tonbridge & Malling Borough Council,6/21/2023,0011046321/1,11046321, 2306.00,Southern Lightning Engineers Ltd,00094000,,Other Expenses,LLC Photovoltaic System,P05LR000009908,110070277
http://statistics.data.gov.uk/id/local-authority/29UP,Tonbridge & Malling Borough Council,6/21/2023,0011046322/1,11046322, 285.00,SECOM plc,01084600,445838322,BRREP Servicing-roller shutter,Ton Sportsgrnd Bldgs / Toilets,M15HCP20001928,110070146
http://statistics.data.gov.uk/id/local-authority/29UP,Tonbridge & Malling Borough Council,6/21/2023,0011046323/1,11046323, 443.60,Security & Electronic Solutions Ltd,01379500,,BRREP Servicing - CCTV,Leis Man Poult Wood Golf Centr,M15HEP20001952,110069651
http://statistics.data.gov.uk/id/local-authority/29UP,Tonbridge & Malling Borough Council,6/21/2023,0011046324/1,11046324, 112.00,East Sussex Fire Ltd,01843100,,Repairs & Mtce to Buildings,Homelessness,C01AATNHS20101,110070238
http://statistics.data.gov.uk/id/local-authority/29UP,Tonbridge & Malling Borough Council,6/21/2023,0011046325/1,11046325, 293.75,NKM Fire Protection Ltd,01784600,,BRREP Servicing - FireAlarmSys,Tonbridge Swimming Pool,M15HBP20001937,110070272
http://statistics.data.gov.uk/id/local-authority/29UP,Tonbridge & Malling Borough Council,6/21/2023,0011046326/1,11046326, 1580.00,Willow Pumps Ltd,00114100,,BRREP Servicing - Pumping Stn,Ton Sportsgrnd Bldgs / Toilets,M15HCP20001931,110070186
http://statistics.data.gov.uk/id/local-authority/29UP,Tonbridge & Malling Borough Council,6/21/2023,0011046327/1,11046327, 1130.00,Chillmech Limited,00978700,,BRREP Servicing-Air Condition,Larkfield Leisure Centre,M15HDP20001935,110070269
http://statistics.data.gov.uk/id/local-authority/29UP,Tonbridge & Malling Borough Council,6/21/2023,0011046328/1,11046328, 650.00,BML Building Services Ltd,01505000,,BRREP Response - General,Gibson Building West,M15KBP50001997,110070233
http://statistics.data.gov.uk/id/local-authority/29UP,Tonbridge & Malling Borough Council,6/21/2023,0011046329/1,11046329, 500.00,BML Building Services Ltd,01505000,,BRREP Response - General,Leis Man Poult Wood Golf Centr,M15HEP50001997,110070234
http://statistics.data.gov.uk/id/local-authority/29UP,Tonbridge & Malling Borough Council,6/21/2023,0011046330/1,11046330, 350.00,Lemon Drainage Services LTD,01761600,,Sewerage Charges,Haysden Country Park,B22LC000024003,110070246
http://statistics.data.gov.uk/id/local-authority/29UP,Tonbridge & Malling Borough Council,6/21/2023,0011046331/1,11046331, 558.00,BML Building Services Ltd,01505000,,BRREP Response - General,PC - General,M15JAP50001997,110070214
http://statistics.data.gov.uk/id/local-authority/29UP,Tonbridge & Malling Borough Council,6/21/2023,0011046332/1,11046332, 150.00,BML Building Services Ltd,01505000,,BRREP Response - General,Tonbridge Castle / CAB,M15KFP50001997,110070213
http://statistics.data.gov.uk/id/local-authority/29UP,Tonbridge & Malling Borough Council,6/21/2023,0011046333/1,11046333, 50.00,BML Building Services Ltd,01505000,,BRREP Response - General,Tonbridge Farm Pavillion,M15HGP50001997,110070217
http://statistics.data.gov.uk/id/local-authority/29UP,Tonbridge & Malling Borough Council,6/21/2023,0011046334/1,11046334, 1275.00,BML Building Services Ltd,01505000,,BRREP Response - General,Gibson Building East,M15KGP50001997,110070168
http://statistics.data.gov.uk/id/local-authority/29UP,Tonbridge & Malling Borough Council,6/21/2023,0011046335/1,11046335, 1306.00,Hadene Engineering Ltd,00041900,,BRREP Servicing - boilers,Larkfield Leisure Centre,M15HDP20001929,110070284
http://statistics.data.gov.uk/id/local-authority/29UP,Tonbridge & Malling Borough Council,6/21/2023,0011046336/1,11046336, 1650.00,G C Industrial Heating Services,00578100,,BRREP Servicing - pool plant,Tonbridge Swimming Pool,M15HBP20001910,110070271
http://statistics.data.gov.uk/id/local-authority/29UP,Tonbridge & Malling Borough Council,6/21/2023,0011046337/1,11046337, 1089.00,Learnd UK,01226700,,BRREP BMS System Mntce/Upgrade,Larkfield Leisure Centre,M15HDP20001912,110069931
http://statistics.data.gov.uk/id/local-authority/29UP,Tonbridge & Malling Borough Council,6/21/2023,0011046338/1,11046338, 150.00,BML Building Services Ltd,01505000,,BRREP Response - General,Leis Man Poult Wood Golf Centr,M15HEP50001997,110070258
http://statistics.data.gov.uk/id/local-authority/29UP,Tonbridge & Malling Borough Council,6/21/2023,0011046339/1,11046339, 100.00,BML Building Services Ltd,01505000,,BRREP Response - General,Gibson Building East,M15KGP50001997,110070241
http://statistics.data.gov.uk/id/local-authority/29UP,Tonbridge & Malling Borough Council,6/21/2023,0011046340/1,11046340, 39.99,Extinguisher Doctor Ltd,00059500,,BRREP Servicing-FireExtinguish,Tonbridge Castle / CAB,M15KFP20001938,110070279
http://statistics.data.gov.uk/id/local-authority/29UP,Tonbridge & Malling Borough Council,6/21/2023,0011046341/1,11046341, 1500.00,Kent Safeguarding Children Multi-Agency,01768600,,Safeguarding,Community Development,D30MB000047018,110070281
http://statistics.data.gov.uk/id/local-authority/29UP,Tonbridge & Malling Borough Council,6/21/2023,0011046342/3,11046342, 117.81,KM Media Group Ltd,00053900,,Advertising General,Licences - Fee Paying,H27SHZ99944216,
http://statistics.data.gov.uk/id/local-authority/29UP,Tonbridge & Malling Borough Council,6/21/2023,0011046343/3,11046343, 9975.64,Financial Data Management  Plc,00035400,,Rents,Conduct of Elections,D31MG000022001,
http://statistics.data.gov.uk/id/local-authority/29UP,Tonbridge & Malling Borough Council,6/21/2023,0011046344/1,11046344, 17650.00,Tonbridge Youth Hub,01630300,,Initiatives,UK Shared Prosperity Fund,D52TH000048135,
http://statistics.data.gov.uk/id/local-authority/29UP,Tonbridge & Malling Borough Council,6/21/2023,0012008760/1,12008760, 4860.00,NEC Software Solutions UK Ltd,01073900,202159745,Software Hire & Support,Information Technology,D27KD000044059,410032408
http://statistics.data.gov.uk/id/local-authority/29UP,Tonbridge & Malling Borough Council,6/21/2023,0012008761/1,12008761, 18750.05,Phoenix Software Ltd,00077400,755349015,Software Hire & Support,Information Technology,D27KD000044059,
http://statistics.data.gov.uk/id/local-authority/29UP,Tonbridge & Malling Borough Council,6/21/2023,0012008762/1,12008762, 181.98,British Telecommunications Plc,00012800,,Telephones - Rentals,General Admin Telephones,D24GT000045005,
http://statistics.data.gov.uk/id/local-authority/29UP,Tonbridge & Malling Borough Council,6/21/2023,0012008763/1,12008763, 1000.00,Jadu Creative,01770500,,Consultancy Fees,Information Technology,D27KD000044011,410032427
http://statistics.data.gov.uk/id/local-authority/29UP,Tonbridge & Malling Borough Council,6/21/2023,0012008763/2,12008763, 275.00,Jadu Creative,01770500,,Consultancy Fees,Information Technology,D27KD000044011,410032427
http://statistics.data.gov.uk/id/local-authority/29UP,Tonbridge & Malling Borough Council,6/21/2023,0021038608/3,21038608, 187500.00,Tonbridge & Malling Leisure Trust,01469100,,Leisure Trust Service Fee,T&M Leisure Trust,B10DA000050101,
http://statistics.data.gov.uk/id/local-authority/29UP,Tonbridge & Malling Borough Council,6/21/2023,0021038609/1,21038609, 558.49,Rainmaker Irrigation Co. Ltd,01140300,,Maintenance of Grounds,Sports Grounds,B13ET000020402,210057275
http://statistics.data.gov.uk/id/local-authority/29UP,Tonbridge & Malling Borough Council,6/21/2023,0021038610/1,21038610, 250.00,Rob Steele T/A Radii Skatepark Repairs,01683100,,Maintenance of Play Equipment,Open Spaces & Amenity Areas,B22LE000020503,210057264
http://statistics.data.gov.uk/id/local-authority/29UP,Tonbridge & Malling Borough Council,6/21/2023,0021038611/1,21038611, 729.10,The Physical Company,01903100,,Initial Furniture & Equipment,Capital Renewals Leisure,P05KGBC0109906,210057270
http://statistics.data.gov.uk/id/local-authority/29UP,Tonbridge & Malling Borough Council,6/21/2023,0021038612/1,21038612, 59.95,Landscape Supply Company,00927600,,Maintenance of Grounds,Haysden Country Park,B22LC000020402,210057243
http://statistics.data.gov.uk/id/local-authority/29UP,Tonbridge & Malling Borough Council,6/21/2023,0021038613/3,21038613, 2600.38,KCC - L.A.S.E.R Commercial Services ,00184300,,Electricity,Haysden Country Park,B22LC000021002,
http://statistics.data.gov.uk/id/local-authority/29UP,Tonbridge & Malling Borough Council,6/21/2023,0021038614/3,21038614, 624.68,KCC - L.A.S.E.R Commercial Services ,00184300,,Electricity,Cemetery,B26MP000021002,
http://statistics.data.gov.uk/id/local-authority/29UP,Tonbridge & Malling Borough Council,6/21/2023,0021038615/3,21038615, 346.70,KCC - L.A.S.E.R Commercial Services ,00184300,,Electricity,Tonbridge Castle Grounds,B22LB000021002,
http://statistics.data.gov.uk/id/local-authority/29UP,Tonbridge & Malling Borough Council,6/21/2023,0021038616/3,21038616, 161.77,KCC - L.A.S.E.R Commercial Services ,00184300,,Electricity,Cemetery,B26MP000021002,
http://statistics.data.gov.uk/id/local-authority/29UP,Tonbridge & Malling Borough Council,6/21/2023,0021038617/1,21038617, 6000.00,Medway Valley Countryside PartnershipKCC,00780000,,Medway Valley Partnership,Countryside/Woodland Mgt,B22LH000051013,210057198
http://statistics.data.gov.uk/id/local-authority/29UP,Tonbridge & Malling Borough Council,6/21/2023,0021038617/2,21038617, 625.00,Medway Valley Countryside PartnershipKCC,00780000,,Medway Valley Partnership,Countryside/Woodland Mgt,B22LH000051013,210057198
http://statistics.data.gov.uk/id/local-authority/29UP,Tonbridge & Malling Borough Council,6/21/2023,0021038618/3,21038618, 22.54,REDACTED PERSONAL DATA,01065500,,Maintenance of Grounds,Haysden Country Park,B22LC000020402,
http://statistics.data.gov.uk/id/local-authority/29UP,Tonbridge & Malling Borough Council,6/21/2023,0021038619/1,21038619, 450.00,Green Leaf Tree & Landscapes Limited,01860500,,Health & Safety - Trees,Countryside/Woodland Mgt,B22LG000044045,210057255
http://statistics.data.gov.uk/id/local-authority/29UP,Tonbridge & Malling Borough Council,6/21/2023,0021038620/1,21038620, 500.00,Green Leaf Tree & Landscapes Limited,01860500,,Health & Safety - Trees,Countryside/Woodland Mgt,B22LG000044045,210057256
http://statistics.data.gov.uk/id/local-authority/29UP,Tonbridge & Malling Borough Council,6/21/2023,0021038624/1,21038624, 40.00,G.L. & R.G. Bourne,00737500,,Maintenance of Grounds,Haysden Country Park,B22LC000020402,210057185
http://statistics.data.gov.uk/id/local-authority/29UP,Tonbridge & Malling Borough Council,6/21/2023,0021038625/1,21038625, 74.71,G.L. & R.G. Bourne,00737500,,Gates / Security,Haysden Country Park,B22LC000044017,210057185
http://statistics.data.gov.uk/id/local-authority/29UP,Tonbridge & Malling Borough Council,6/21/2023,0021038626/1,21038626, 544.98,G.L. & R.G. Bourne,00737500,,Gates / Security,Haysden Country Park,B22LC000044017,210057185
http://statistics.data.gov.uk/id/local-authority/29UP,Tonbridge & Malling Borough Council,6/21/2023,0021038627/1,21038627, 3985.00,Arnold Tarmac Ltd,01685100,619126544,Initial Furniture & Equipment,Capital Renewals Leisure,P05KGBC0509906,210057252
http://statistics.data.gov.uk/id/local-authority/29UP,Tonbridge & Malling Borough Council,6/21/2023,0022027826/3,22027826, 300.00,House to Home Lettings Ltd ,01647600,,Repairs & Mtce to Buildings,Homelessness,C01AA000020101,
http://statistics.data.gov.uk/id/local-authority/29UP,Tonbridge & Malling Borough Council,6/21/2023,0022027847/3,22027847, 76777.25,Urbaser LTD,01718800,,Contract Payments,Refuse Collection,H20SA000054001,
http://statistics.data.gov.uk/id/local-authority/29UP,Tonbridge & Malling Borough Council,6/21/2023,0022027848/11,22027848, 387.37,Urbaser LTD,01718800,,Maintenance of Grounds,Sports Grounds,B13ET000020402,
http://statistics.data.gov.uk/id/local-authority/29UP,Tonbridge & Malling Borough Council,6/21/2023,0022027848/12,22027848, 82.44,Urbaser LTD,01718800,,Maintenance of Grounds,Poult Wood Golf Centre,B21KE000020402,
http://statistics.data.gov.uk/id/local-authority/29UP,Tonbridge & Malling Borough Council,6/21/2023,0022027848/13,22027848, 34.02,Urbaser LTD,01718800,,Maintenance of Grounds,Haysden Country Park,B22LC000020402,
http://statistics.data.gov.uk/id/local-authority/29UP,Tonbridge & Malling Borough Council,6/21/2023,0022027848/14,22027848, 26.13,Urbaser LTD,01718800,,Dog Bin Emptying,Haysden Country Park,B22LC000044012,
http://statistics.data.gov.uk/id/local-authority/29UP,Tonbridge & Malling Borough Council,6/21/2023,0022027848/15,22027848, 740.63,Urbaser LTD,01718800,,Maintenance of Grounds,Open Spaces & Amenity Areas,B22LE000020402,
http://statistics.data.gov.uk/id/local-authority/29UP,Tonbridge & Malling Borough Council,6/21/2023,0022027848/16,22027848, 13.93,Urbaser LTD,01718800,,Dog Bin Emptying,Open Spaces & Amenity Areas,B22LE000044012,
http://statistics.data.gov.uk/id/local-authority/29UP,Tonbridge & Malling Borough Council,6/21/2023,0022027848/17,22027848, 24.04,Urbaser LTD,01718800,,Maintenance of Grounds,Countryside/Woodland Mgt,B22LG000020402,
http://statistics.data.gov.uk/id/local-authority/29UP,Tonbridge & Malling Borough Council,6/21/2023,0022027848/18,22027848, 72.20,Urbaser LTD,01718800,,Maintenance of Grounds,Leybourne Lakes Country Park,B22LK000020402,
http://statistics.data.gov.uk/id/local-authority/29UP,Tonbridge & Malling Borough Council,6/21/2023,0022027848/19,22027848, 26.13,Urbaser LTD,01718800,,Dog Bin Emptying,Leybourne Lakes Country Park,B22LK000044012,
http://statistics.data.gov.uk/id/local-authority/29UP,Tonbridge & Malling Borough Council,6/21/2023,0022027848/20,22027848, 60.22,Urbaser LTD,01718800,,Maintenance of Grounds,Grounds,D21FF000020402,
http://statistics.data.gov.uk/id/local-authority/29UP,Tonbridge & Malling Borough Council,6/21/2023,0022027848/21,22027848, 184.19,Urbaser LTD,01718800,,Maintenance of Grounds,Parking Off-Street,E10HA000020402,
http://statistics.data.gov.uk/id/local-authority/29UP,Tonbridge & Malling Borough Council,6/21/2023,0022027848/22,22027848, 4686.59,Urbaser LTD,01718800,,Maintenance of Grounds,Parking Off-Street,E10HAE00120402,
http://statistics.data.gov.uk/id/local-authority/29UP,Tonbridge & Malling Borough Council,6/21/2023,0022027848/23,22027848, 504.84,Urbaser LTD,01718800,,Maintenance of Grounds,Parking Off-Street,E10HAE00220402,
http://statistics.data.gov.uk/id/local-authority/29UP,Tonbridge & Malling Borough Council,6/21/2023,0022027848/24,22027848, 315.82,Urbaser LTD,01718800,,Maintenance of Grounds,Parking Off-Street,E10HAE00320402,
http://statistics.data.gov.uk/id/local-authority/29UP,Tonbridge & Malling Borough Council,6/21/2023,0022027848/25,22027848, 1651.73,Urbaser LTD,01718800,,Maintenance of Grounds,Parking Off-Street,E10HAE00420402,
http://statistics.data.gov.uk/id/local-authority/29UP,Tonbridge & Malling Borough Council,6/21/2023,0022027848/26,22027848, 274.48,Urbaser LTD,01718800,,Maintenance of Grounds,Parking Off-Street,E10HAE00520402,
http://statistics.data.gov.uk/id/local-authority/29UP,Tonbridge & Malling Borough Council,6/21/2023,0022027848/27,22027848, 1023.71,Urbaser LTD,01718800,,Maintenance of Grounds,Parking Off-Street,E10HAE00620402,
http://statistics.data.gov.uk/id/local-authority/29UP,Tonbridge & Malling Borough Council,6/21/2023,0022027848/28,22027848, 8.63,Urbaser LTD,01718800,,Maintenance of Grounds,Parking Off-Street,E10HAE00820402,
http://statistics.data.gov.uk/id/local-authority/29UP,Tonbridge & Malling Borough Council,6/21/2023,0022027848/29,22027848, 8.52,Urbaser LTD,01718800,,Maintenance of Grounds,Parking Off-Street,E10HAE00920402,
http://statistics.data.gov.uk/id/local-authority/29UP,Tonbridge & Malling Borough Council,6/21/2023,0022027848/30,22027848, 20.23,Urbaser LTD,01718800,,Maintenance of Grounds,Parking Off-Street,E10HAE01020402,
http://statistics.data.gov.uk/id/local-authority/29UP,Tonbridge & Malling Borough Council,6/21/2023,0022027848/31,22027848, 96.12,Urbaser LTD,01718800,,Maintenance of Grounds,Parking Off-Street,E10HAE01120402,
http://statistics.data.gov.uk/id/local-authority/29UP,Tonbridge & Malling Borough Council,6/21/2023,0022027848/32,22027848, 60.48,Urbaser LTD,01718800,,Maintenance of Grounds,Parking Off-Street,E10HAE01220402,
http://statistics.data.gov.uk/id/local-authority/29UP,Tonbridge & Malling Borough Council,6/21/2023,0022027848/33,22027848, 1146.81,Urbaser LTD,01718800,,Maintenance of Grounds,Parking Off-Street,E10HAE01320402,
http://statistics.data.gov.uk/id/local-authority/29UP,Tonbridge & Malling Borough Council,6/21/2023,0022027848/34,22027848, 87.22,Urbaser LTD,01718800,,Maintenance of Grounds,Parking Off-Street,E10HAE01420402,
http://statistics.data.gov.uk/id/local-authority/29UP,Tonbridge & Malling Borough Council,6/21/2023,0022027848/35,22027848, 268.78,Urbaser LTD,01718800,,Maintenance of Grounds,Parking Off-Street,E10HAE01520402,
http://statistics.data.gov.uk/id/local-authority/29UP,Tonbridge & Malling Borough Council,6/21/2023,0022027848/36,22027848, 289.08,Urbaser LTD,01718800,,Maintenance of Grounds,Parking Off-Street,E10HAE01620402,
http://statistics.data.gov.uk/id/local-authority/29UP,Tonbridge & Malling Borough Council,6/21/2023,0022027848/37,22027848, 853.41,Urbaser LTD,01718800,,Maintenance of Grounds,Parking Off-Street,E10HAE01720402,
http://statistics.data.gov.uk/id/local-authority/29UP,Tonbridge & Malling Borough Council,6/21/2023,0022027848/38,22027848, 244.95,Urbaser LTD,01718800,,Maintenance of Grounds,Parking Off-Street,E10HAE01920402,
http://statistics.data.gov.uk/id/local-authority/29UP,Tonbridge & Malling Borough Council,6/21/2023,0022027848/39,22027848, 538.07,Urbaser LTD,01718800,,Maintenance of Grounds,Parking Off-Street,E10HAE02020402,
http://statistics.data.gov.uk/id/local-authority/29UP,Tonbridge & Malling Borough Council,6/21/2023,0022027848/40,22027848, 18.68,Urbaser LTD,01718800,,Maintenance of Grounds,Parking Off-Street,E10HAE02120402,
http://statistics.data.gov.uk/id/local-authority/29UP,Tonbridge & Malling Borough Council,6/21/2023,0022027848/41,22027848, 123.00,Urbaser LTD,01718800,,Maintenance of Grounds,Parking Off-Street,E10HAE02220402,
http://statistics.data.gov.uk/id/local-authority/29UP,Tonbridge & Malling Borough Council,6/21/2023,0022027848/42,22027848, 1034.02,Urbaser LTD,01718800,,Maintenance of Grounds,Parking Off-Street,E10HAE02320402,
http://statistics.data.gov.uk/id/local-authority/29UP,Tonbridge & Malling Borough Council,6/21/2023,0022027848/43,22027848, 2.67,Urbaser LTD,01718800,,Maintenance of Grounds,Parking Off-Street,E10HAE02720402,
http://statistics.data.gov.uk/id/local-authority/29UP,Tonbridge & Malling Borough Council,6/21/2023,0022027848/44,22027848, 375.72,Urbaser LTD,01718800,,Maintenance of Grounds,Parking Off-Street,E10HAE02820402,
http://statistics.data.gov.uk/id/local-authority/29UP,Tonbridge & Malling Borough Council,6/21/2023,0022027848/45,22027848, 6.77,Urbaser LTD,01718800,,Maintenance of Grounds,Parking Off-Street,E10HAE02920402,
http://statistics.data.gov.uk/id/local-authority/29UP,Tonbridge & Malling Borough Council,6/21/2023,0022027848/46,22027848, 39.82,Urbaser LTD,01718800,,Maintenance of Grounds,Parking Off-Street,E10HAE03020402,
http://statistics.data.gov.uk/id/local-authority/29UP,Tonbridge & Malling Borough Council,6/21/2023,0022027848/47,22027848, 33.88,Urbaser LTD,01718800,,Maintenance of Grounds,Parking Off-Street,E10HAE03120402,
http://statistics.data.gov.uk/id/local-authority/29UP,Tonbridge & Malling Borough Council,6/21/2023,0022027848/48,22027848, 718.40,Urbaser LTD,01718800,,Maintenance of Grounds,Parking Off-Street,E10HAE04020402,
http://statistics.data.gov.uk/id/local-authority/29UP,Tonbridge & Malling Borough Council,6/21/2023,0022027848/49,22027848, 498.26,Urbaser LTD,01718800,,Maintenance of Grounds,Parking Off-Street,E10HAE04220402,
http://statistics.data.gov.uk/id/local-authority/29UP,Tonbridge & Malling Borough Council,6/21/2023,0022027848/50,22027848, 1430.15,Urbaser LTD,01718800,,Maintenance of Grounds,Parking Off-Street,E10HAE04520402,
http://statistics.data.gov.uk/id/local-authority/29UP,Tonbridge & Malling Borough Council,6/21/2023,0022027848/51,22027848, 92676.10,Urbaser LTD,01718800,,Contract Payments,Refuse Collection,H20SA000054001,
http://statistics.data.gov.uk/id/local-authority/29UP,Tonbridge & Malling Borough Council,6/21/2023,0022027848/52,22027848, 946.15,Urbaser LTD,01718800,,Responsible Dog Ownership,Street Scene,H23SD000044050,
http://statistics.data.gov.uk/id/local-authority/29UP,Tonbridge & Malling Borough Council,6/21/2023,0022027848/53,22027848, 56523.64,Urbaser LTD,01718800,,Contract Payments,Street Scene,H23SD000054001,
http://statistics.data.gov.uk/id/local-authority/29UP,Tonbridge & Malling Borough Council,6/21/2023,0022027848/54,22027848, 356.30,Urbaser LTD,01718800,,General Maintenance,Dry Recycling,H34SR000020301,
http://statistics.data.gov.uk/id/local-authority/29UP,Tonbridge & Malling Borough Council,6/21/2023,0022027848/55,22027848, 84198.36,Urbaser LTD,01718800,,Contract Payments,Dry Recycling,H34SR000054001,
http://statistics.data.gov.uk/id/local-authority/29UP,Tonbridge & Malling Borough Council,6/21/2023,0022027848/56,22027848, 32945.93,Urbaser LTD,01718800,,Contract Payments,Food Recycling,H34SS000054001,
http://statistics.data.gov.uk/id/local-authority/29UP,Tonbridge & Malling Borough Council,6/21/2023,0022027848/57,22027848, 17888.09,Urbaser LTD,01718800,,Contract Payments,Garden Waste Recycling,H34ST000054001,
http://statistics.data.gov.uk/id/local-authority/29UP,Tonbridge & Malling Borough Council,6/21/2023,0022027849/1,22027849, 9564.15,Town & Country Housing Group,01385400,,Countywide DFG Project,Private Sector Housing Renewal,C03BD000044031,
http://statistics.data.gov.uk/id/local-authority/29UP,Tonbridge & Malling Borough Council,6/21/2023,0022027850/1,22027850, 8840.00,Town & Country Housing Group,01385400,,Countywide DFG Project,Private Sector Housing Renewal,C03BD000044031,
http://statistics.data.gov.uk/id/local-authority/29UP,Tonbridge & Malling Borough Council,6/21/2023,0022027851/3,22027851, 66.00,Streamline (Kent) Limited,01043100,,Public Transport,Homelessness,C01AA000033001,
http://statistics.data.gov.uk/id/local-authority/29UP,Tonbridge & Malling Borough Council,6/21/2023,0022027852/3,22027852, 920.23,STM Environmental Consultants Limited,01552600,,Contaminated Land Site Inspect,Environmental Protection,H32SN000054018,
http://statistics.data.gov.uk/id/local-authority/29UP,Tonbridge & Malling Borough Council,6/21/2023,0022027853/3,22027853, 37.59,B&Q/Screwfix Direct(TradeUKAccount),00141300,,Purchases,Open Spaces & Amenity Areas,B22LE000040101,
http://statistics.data.gov.uk/id/local-authority/29UP,Tonbridge & Malling Borough Council,6/21/2023,0022027854/1,22027854, 250.00,ReferAll Ltd,01817700,,Healthy Living Initiatives,Public Health - Healthy Living,H40SYVH0048145,220003357
http://statistics.data.gov.uk/id/local-authority/29UP,Tonbridge & Malling Borough Council,6/21/2023,0022027856/1,22027856, 84.00,Memphis Belle Sandwich Bar,00983600,,Healthy Living Initiatives,Public Health - Healthy Living,H40SYVH0048145,220003355
http://statistics.data.gov.uk/id/local-authority/29UP,Tonbridge & Malling Borough Council,6/21/2023,0022027857/3,22027857, 1026.50,Lucy and Martin Recycling LTD,01694200,,Vehicle Licences,Dry Recycling,H34SR000030105,
http://statistics.data.gov.uk/id/local-authority/29UP,Tonbridge & Malling Borough Council,6/21/2023,0022027860/3,22027860, 68.54,British Telecommunications Plc,00012800,,Purchases,Homelessness,C01AATNPR40101,
http://statistics.data.gov.uk/id/local-authority/29UP,Tonbridge & Malling Borough Council,6/21/2023,0022027861/3,22027861, 42.18,Biffa Waste Services Ltd,01284500,,Trade Refuse Charges,Cleaning & Security,D21FD000044008,
http://statistics.data.gov.uk/id/local-authority/29UP,Tonbridge & Malling Borough Council,6/21/2023,0022027862/7,22027862, 11.95,REDACTED PERSONAL DATA,01175600,,Food Sampling,Food & Safety - Food Safety,H35SX000054011,
http://statistics.data.gov.uk/id/local-authority/29UP,Tonbridge & Malling Borough Council,6/21/2023,0022027862/8,22027862, 1.15,REDACTED PERSONAL DATA,01175600,,Food Sampling,Food & Safety - Food Safety,H35SX000054011,
http://statistics.data.gov.uk/id/local-authority/29UP,Tonbridge & Malling Borough Council,6/21/2023,0022027863/3,22027863, 533.16,British Gas Services LTD,01260000,,Electricity,Homelessness,C01AAMAUN21002,
http://statistics.data.gov.uk/id/local-authority/29UP,Tonbridge & Malling Borough Council,6/21/2023,0022027864/1,22027864, 7200.00,ARD Local Ltd,01904000,,Other Expenses,Housing Assistance,P03AD000009908,
http://statistics.data.gov.uk/id/local-authority/29UP,Tonbridge & Malling Borough Council,6/21/2023,0022027865/1,22027865, 2754.00,Town & Country Housing Group,01385400,,Other Expenses,Housing Assistance,P03AD000009908,
http://statistics.data.gov.uk/id/local-authority/29UP,Tonbridge & Malling Borough Council,6/21/2023,0022027866/1,22027866, 3.00,Tonbridge & Malling Borough Council,00103700,,Other Expenses,Housing Assistance,P03AD000009908,
http://statistics.data.gov.uk/id/local-authority/29UP,Tonbridge & Malling Borough Council,6/21/2023,0022027867/1,22027867, 11490.73,DG Servicing,01719900,,Other Expenses,Disabled Facilities Grant Mand,P03AC000009908,
http://statistics.data.gov.uk/id/local-authority/29UP,Tonbridge & Malling Borough Council,6/21/2023,0022027868/1,22027868, 225.00,Enviro Technology Services PLC,01461300,,Maintenance - General,Environmental Protection,H32SN000040135,220003358
http://statistics.data.gov.uk/id/local-authority/29UP,Tonbridge & Malling Borough Council,6/21/2023,0031019476/1,31019476, 800.00,HALO Technologies Europe LTD,01824700,,Purchases,Security Services Management,E09GA000040101,310043037
http://statistics.data.gov.uk/id/local-authority/29UP,Tonbridge & Malling Borough Council,6/21/2023,0031019476/2,31019476, 560.00,HALO Technologies Europe LTD,01824700,,Purchases,Security Services Management,E09GA000040101,310043037
http://statistics.data.gov.uk/id/local-authority/29UP,Tonbridge & Malling Borough Council,6/21/2023,0031019512/1,31019512, 498.00,SKF Contractors Ltd,00092000,621768141,Premises Repairs & Maintenance,Parking Off-Street,E10HA000020601,310043070
http://statistics.data.gov.uk/id/local-authority/29UP,Tonbridge & Malling Borough Council,6/21/2023,0031019513/1,31019513, 490.80,SKF Contractors Ltd,00092000,621768141,Repair & Mtce of Fixed Plant,Boro Highways & Emergency Oper,E01AA000020501,310043067
http://statistics.data.gov.uk/id/local-authority/29UP,Tonbridge & Malling Borough Council,6/21/2023,0031019516/1,31019516, 716.83,PSR Lighting & Signs Ltd,01265400,986561173,Premises Repairs & Maintenance,Parking Off-Street,E10HA000020601,310043069
http://statistics.data.gov.uk/id/local-authority/29UP,Tonbridge & Malling Borough Council,6/21/2023,0031019516/2,31019516, 856.00,PSR Lighting & Signs Ltd,01265400,986561173,Premises Repairs & Maintenance,Parking Off-Street,E10HA000020601,310043069
http://statistics.data.gov.uk/id/local-authority/29UP,Tonbridge & Malling Borough Council,6/21/2023,0031019516/3,31019516, 400.00,PSR Lighting & Signs Ltd,01265400,986561173,BRREP Servicing - ext lighting,Kings Hill Offices - Ext Areas,M15KAP20001941,310043069
http://statistics.data.gov.uk/id/local-authority/29UP,Tonbridge & Malling Borough Council,6/21/2023,0031019517/1,31019517, 64.36,Ark Trading/Goldstar,01607200,113179830,Uniforms,Parking Off-Street,E10HA000042002,310043060
http://statistics.data.gov.uk/id/local-authority/29UP,Tonbridge & Malling Borough Council,6/21/2023,0031019517/2,31019517, 14.39,Ark Trading/Goldstar,01607200,113179830,Uniforms,Parking Off-Street,E10HA000042002,310043060
http://statistics.data.gov.uk/id/local-authority/29UP,Tonbridge & Malling Borough Council,6/21/2023,0031019517/3,31019517, 21.59,Ark Trading/Goldstar,01607200,113179830,Uniforms,Parking Off-Street,E10HA000042002,310043060
http://statistics.data.gov.uk/id/local-authority/29UP,Tonbridge & Malling Borough Council,6/21/2023,0031019517/4,31019517, 21.59,Ark Trading/Goldstar,01607200,113179830,Uniforms,Parking On-Street,E10HD000042002,310043060
http://statistics.data.gov.uk/id/local-authority/29UP,Tonbridge & Malling Borough Council,6/21/2023,0031019517/5,31019517, 96.54,Ark Trading/Goldstar,01607200,113179830,Uniforms,Parking On-Street,E10HD000042002,310043060
http://statistics.data.gov.uk/id/local-authority/29UP,Tonbridge & Malling Borough Council,6/21/2023,0031019517/6,31019517, 32.38,Ark Trading/Goldstar,01607200,113179830,Uniforms,Parking On-Street,E10HD000042002,310043060
http://statistics.data.gov.uk/id/local-authority/29UP,Tonbridge & Malling Borough Council,6/21/2023,0031019518/3,31019518, 53.70,Npower Ltd,01675800,,Electricity,Parking Off-Street,E10HA000021002,
http://statistics.data.gov.uk/id/local-authority/29UP,Tonbridge & Malling Borough Council,6/21/2023,0031019519/3,31019519, 90.40,Npower Ltd,01675800,,Electricity,Parking Off-Street,E10HA000021002,
http://statistics.data.gov.uk/id/local-authority/29UP,Tonbridge & Malling Borough Council,6/21/2023,0031019520/3,31019520, 239.19,Npower Ltd,01675800,,Electricity,Parking Off-Street,E10HA000021002,
http://statistics.data.gov.uk/id/local-authority/29UP,Tonbridge & Malling Borough Council,6/21/2023,0031019521/1,31019521, 332.01,KM Media Group Ltd,00053900,,Advertising General,Parking On-Street,E10HDZ99944216,310043033
http://statistics.data.gov.uk/id/local-authority/29UP,Tonbridge & Malling Borough Council,6/21/2023,0031019522/3,31019522, 1564.01,CDER Group,01773300,,Adjudication & Enforcement Ser,Parking Off-Street,E10HA000044230,
http://statistics.data.gov.uk/id/local-authority/29UP,Tonbridge & Malling Borough Council,6/21/2023,0031019523/1,31019523, 710.00,Archway Highway Services Ltd,01398000,,Premises Repairs & Maintenance,Parking On-Street,E10HD000020601,310043062
http://statistics.data.gov.uk/id/local-authority/29UP,Tonbridge & Malling Borough Council,6/21/2023,0031019523/2,31019523, 633.75,Archway Highway Services Ltd,01398000,,Premises Repairs & Maintenance,Parking On-Street,E10HD000020601,310043062
http://statistics.data.gov.uk/id/local-authority/29UP,Tonbridge & Malling Borough Council,6/21/2023,0031019524/1,31019524, 35.98,KelticLimited,01000400,,Uniforms,Parking Off-Street,E10HA000042002,310043057
http://statistics.data.gov.uk/id/local-authority/29UP,Tonbridge & Malling Borough Council,6/21/2023,0031019524/2,31019524, 15.16,KelticLimited,01000400,,Uniforms,Parking Off-Street,E10HA000042002,310043057
http://statistics.data.gov.uk/id/local-authority/29UP,Tonbridge & Malling Borough Council,6/21/2023,0031019524/3,31019524, 3.95,KelticLimited,01000400,,Uniforms,Parking Off-Street,E10HA000042002,310043057
http://statistics.data.gov.uk/id/local-authority/29UP,Tonbridge & Malling Borough Council,6/21/2023,0031019524/4,31019524, 1.20,KelticLimited,01000400,,Uniforms,Parking Off-Street,E10HA000042002,310043057
http://statistics.data.gov.uk/id/local-authority/29UP,Tonbridge & Malling Borough Council,6/21/2023,0031019524/5,31019524, 9.95,KelticLimited,01000400,,Uniforms,Parking Off-Street,E10HA000042002,310043057
http://statistics.data.gov.uk/id/local-authority/29UP,Tonbridge & Malling Borough Council,6/21/2023,0031019524/6,31019524, 1.80,KelticLimited,01000400,,Uniforms,Parking On-Street,E10HD000042002,310043057
http://statistics.data.gov.uk/id/local-authority/29UP,Tonbridge & Malling Borough Council,6/21/2023,0031019524/7,31019524, 22.74,KelticLimited,01000400,,Uniforms,Parking On-Street,E10HD000042002,310043057
http://statistics.data.gov.uk/id/local-authority/29UP,Tonbridge & Malling Borough Council,6/21/2023,0031019524/8,31019524, 53.97,KelticLimited,01000400,,Uniforms,Parking On-Street,E10HD000042002,310043057
http://statistics.data.gov.uk/id/local-authority/29UP,Tonbridge & Malling Borough Council,6/21/2023,0032010270/3,32010270, 1653.00,Vivid Resourcing,01773700,,Temporary Staff,Planning Sals&Overheads,D01AJDJ0111300,
http://statistics.data.gov.uk/id/local-authority/29UP,Tonbridge & Malling Borough Council,6/21/2023,0032010271/3,32010271, 1638.00,The Oyster Partnership,01196400,,Temporary Staff,Planning Sals&Overheads,D01AJDJ0111300,
http://statistics.data.gov.uk/id/local-authority/29UP,Tonbridge & Malling Borough Council,6/21/2023,0032010272/3,32010272, 2077.00,Hays Specialist Recruitment Limited,01879200,773695871,Temporary Staff,Planning Sals&Overheads,D01AJDJ0111300,
http://statistics.data.gov.uk/id/local-authority/29UP,Tonbridge & Malling Borough Council,6/21/2023,0032010273/3,32010273, 1800.00,G2 Recruitment Solutions,01786000,,Temporary Staff,Planning Sals&Overheads,D01AJDJ0011300,
http://statistics.data.gov.uk/id/local-authority/29UP,Tonbridge & Malling Borough Council,6/21/2023,0032010274/3,32010274, 1376.00,Carrington West Limited,01844500,,Temporary Staff,Planning Sals&Overheads,D01AJDJ0111300,
http://statistics.data.gov.uk/id/local-authority/29UP,Tonbridge & Malling Borough Council,6/21/2023,0032010275/3,32010275, 1190.25,Carrington West Limited,01844500,,Temporary Staff,Planning Sals&Overheads,D01AJDJ0111300,
http://statistics.data.gov.uk/id/local-authority/29UP,Tonbridge & Malling Borough Council,6/21/2023,0032010276/3,32010276, 1656.00,Carrington West Limited,01844500,,Temporary Staff,Planning Sals&Overheads,D01AJDJ0111300,
http://statistics.data.gov.uk/id/local-authority/29UP,Tonbridge & Malling Borough Council,6/21/2023,0032010278/1,32010278, 13266.00,Ove Arup & Partners Ltd,01864300,524461265,Development of Local Plan,Development of Local Plan,A01AE000044023,320003511
http://statistics.data.gov.uk/id/local-authority/29UP,Tonbridge & Malling Borough Council,6/21/2023,0032010279/3,32010279, 2361.75,Hays Specialist Recruitment Limited,01879200,773695871,Temporary Staff,Planning Sals&Overheads,D01AJDJ0111300,
http://statistics.data.gov.uk/id/local-authority/29UP,Tonbridge & Malling Borough Council,6/21/2023,0032010280/3,32010280, 2221.35,Hays Specialist Recruitment Limited,01879200,773695871,Temporary Staff,Planning Sals&Overheads,D01AJDJ0311300,
http://statistics.data.gov.uk/id/local-authority/29UP,Tonbridge & Malling Borough Council,6/21/2023,0041035517/1,41035517, 167.56,Maidstone Borough Council,01173700,,Bailiffs Commission,Local Revenue & NNDR Collect,D41QA000044075,
http://statistics.data.gov.uk/id/local-authority/29UP,Tonbridge & Malling Borough Council,6/21/2023,0041035596/3,41035596, 394.52,Maidstone Borough Council,01173700,,Bailiffs Commission,Local Revenue & NNDR Collect,D41QA000044075,
http://statistics.data.gov.uk/id/local-authority/29UP,Tonbridge & Malling Borough Council,6/21/2023,0041035597/3,41035597, 2155.72,Maidstone Borough Council,01173700,,Bailiffs Commission,Local Revenue & NNDR Collect,D41QA000044075,
http://statistics.data.gov.uk/id/local-authority/29UP,Tonbridge & Malling Borough Council,6/21/2023,0041035601/1,41035601, 993.48,Morgan Hunt UK Ltd,01086900,,Temporary Staff,Finance Sals&Overheads,D01AFDF1111300,
http://statistics.data.gov.uk/id/local-authority/29UP,Tonbridge & Malling Borough Council,6/21/2023,0041035602/1,41035602, 168.38,REDACTED PERSONAL DATA,01903400,,Premises Insurance,Parking Off-Street,E10HA000028001,
http://statistics.data.gov.uk/id/local-authority/29UP,Tonbridge & Malling Borough Council,6/21/2023,0041035603/1,41035603, 11596.02,NEC Software Solutions UK Ltd,01073900,202159745,Other Expenses,Housing Benefits,C05CL000048010,410032423
http://statistics.data.gov.uk/id/local-authority/29UP,Tonbridge & Malling Borough Council,6/21/2023,0041035604/1,41035604, 4005.53,Rundle & Co Ltd,00087200,,Bailiffs Commission,Local Revenue & NNDR Collect,D41QA000044075,
http://statistics.data.gov.uk/id/local-authority/29UP,Tonbridge & Malling Borough Council,6/21/2023,0041035605/1,41035605, 90.00,REDACTED PERSONAL DATA,01903500,,Premises Insurance,Parking Off-Street,E10HA000028001,
http://statistics.data.gov.uk/id/local-authority/29UP,Tonbridge & Malling Borough Council,6/21/2023,0051008820/1,51008820, 555.90,Local Government Association,01186000,,Ext Fees/General,Training,D10DCDM0013567,510010631
http://statistics.data.gov.uk/id/local-authority/29UP,Tonbridge & Malling Borough Council,6/22/2023,0041035615/1,41035615, 2608.00,H.M. Revenue & Customs,00048400,,Levy Payment,Apprenticeship Scheme,D10DE000013700,
http://statistics.data.gov.uk/id/local-authority/29UP,Tonbridge & Malling Borough Council,6/22/2023,0041035615/2,41035615, 1.00,H.M. Revenue & Customs,00048400,,Levy Payment,Apprenticeship Scheme,D10DE000013700,
http://statistics.data.gov.uk/id/local-authority/29UP,Tonbridge & Malling Borough Council,6/22/2023,0041035619/1,41035619, 20.11,WorldPay Ltd,01402000,991280207,Credit Card Commission,Banking Arrangements,D43QK000044082,
http://statistics.data.gov.uk/id/local-authority/29UP,Tonbridge & Malling Borough Council,6/23/2023,0041035620/1,41035620, 16.00,HSBC Bank Plc,01740800,,Bank Charges,Banking Arrangements,D43QK000044222,
http://statistics.data.gov.uk/id/local-authority/29UP,Tonbridge & Malling Borough Council,6/23/2023,0041035621/1,41035621, 68.00,National Westminster Bank Plc,00069400,,Bank Charges,Banking Arrangements,D43QK000044222,
http://statistics.data.gov.uk/id/local-authority/29UP,Tonbridge & Malling Borough Council,6/26/2023,0041035622/1,41035622, 15.00,BNP Paribas,01360500,,Bank Charges,Banking Arrangements,D43QK000044222,
http://statistics.data.gov.uk/id/local-authority/29UP,Tonbridge & Malling Borough Council,6/26/2023,0041035624/1,41035624, 25068.84,Osbornes Solicitors LLP,01902300,,Legal Fees,Homelessness,C01AA000044002,
http://statistics.data.gov.uk/id/local-authority/29UP,Tonbridge & Malling Borough Council,6/26/2023,0041035624/2,41035624, 7409.85,Osbornes Solicitors LLP,01902300,,Legal Fees,Homelessness,C01AA000044002,
http://statistics.data.gov.uk/id/local-authority/29UP,Tonbridge & Malling Borough Council,6/26/2023,0041035625/1,41035625, 2105.77,Doorknobs Ltd,01904100,,Temporary Accommodation,Ukrainian Refugee Assistance,D54UA000044051,
http://statistics.data.gov.uk/id/local-authority/29UP,Tonbridge & Malling Borough Council,6/27/2023,0041035626/1,41035626, 100.00,REDACTED PERSONAL DATA,01904700,,Compensation Scheme,Local Revenue & NNDR Collect,D41QA000060120,
http://statistics.data.gov.uk/id/local-authority/29UP,Tonbridge & Malling Borough Council,6/27/2023,0041035627/1,41035627, 15.00,BNP Paribas,01360500,,Bank Charges,Banking Arrangements,D43QK000044222,
http://statistics.data.gov.uk/id/local-authority/29UP,Tonbridge & Malling Borough Council,6/28/2023,0011046175/1,11046175, 2100.00,Kent County Council,00322500,,Community Safety Initiatives,Community Safety,D30MA000048134,110070226
http://statistics.data.gov.uk/id/local-authority/29UP,Tonbridge & Malling Borough Council,6/28/2023,0011046346/3,11046346, 18.95,REDACTED PERSONAL DATA,01683000,,Castle Catering Provisions,Ton Castle Council Chamber,D21FC000041015,
http://statistics.data.gov.uk/id/local-authority/29UP,Tonbridge & Malling Borough Council,6/28/2023,0011046347/3,11046347, 21.10,Royal Mail,00086200,,Postages - Business Reply,Electoral Registration,D31MF000045003,
http://statistics.data.gov.uk/id/local-authority/29UP,Tonbridge & Malling Borough Council,6/28/2023,0011046347/4,11046347, 1508.00,Royal Mail,00086200,,Rents,Conduct of Elections,D31MG000022001,
http://statistics.data.gov.uk/id/local-authority/29UP,Tonbridge & Malling Borough Council,6/28/2023,0011046348/3,11046348, 2123.44,GSF SANDYLIGHT LTD,01705300,,Temporary Staff,Admin & Prop Sals&Overheads,D01AADA0511300,
http://statistics.data.gov.uk/id/local-authority/29UP,Tonbridge & Malling Borough Council,6/28/2023,0011046349/1,11046349, 94.50,The Little Knight,01240200,,Purchases,TIC Stock Account,K18AX000001002,
http://statistics.data.gov.uk/id/local-authority/29UP,Tonbridge & Malling Borough Council,6/28/2023,0011046350/3,11046350, 1157.56,The Oyster Partnership,01196400,,Temporary Staff,Admin & Prop Sals&Overheads,D01AADA1111300,
http://statistics.data.gov.uk/id/local-authority/29UP,Tonbridge & Malling Borough Council,6/28/2023,0011046351/3,11046351, 298.46,Premier Paper Group,01421800,,Purchases - Paper,Printing,D22GA000040102,
http://statistics.data.gov.uk/id/local-authority/29UP,Tonbridge & Malling Borough Council,6/28/2023,0011046352/3,11046352, 408.58,Canon (UK) Limited,00298700,,Purchases - Paper,Printing,D22GA000040102,
http://statistics.data.gov.uk/id/local-authority/29UP,Tonbridge & Malling Borough Council,6/28/2023,0011046353/3,11046353, 215.52,Initial Washroom Hygiene,00048300,,Laundry - Roller Towels,Cleaning & Security,D21FD000042003,
http://statistics.data.gov.uk/id/local-authority/29UP,Tonbridge & Malling Borough Council,6/28/2023,0011046354/3,11046354, 97.42,Atlas Facilities Managment Limited ,01075900,,Miscellaneous Services,Cleaning & Security,D21FDDD5044015,
http://statistics.data.gov.uk/id/local-authority/29UP,Tonbridge & Malling Borough Council,6/28/2023,0011046355/3,11046355, 1480.60,The Oyster Partnership,01196400,,Temporary Staff,Admin & Prop Sals&Overheads,D01AADA1111300,
http://statistics.data.gov.uk/id/local-authority/29UP,Tonbridge & Malling Borough Council,6/28/2023,0011046356/1,11046356, 135.00,Tonbridge & Malling Leisure Trust,01469100,,Meeting Expenses,Committee Administration,D29LL000048020,
http://statistics.data.gov.uk/id/local-authority/29UP,Tonbridge & Malling Borough Council,6/28/2023,0011046357/3,11046357, 2625.63,Tonbridge & Malling Leisure Trust,01469100,,BRREP Legionella Certification,Larkfield Leisure Centre,M15HDP30001995,
http://statistics.data.gov.uk/id/local-authority/29UP,Tonbridge & Malling Borough Council,6/28/2023,0011046358/3,11046358, 229.35,Biffa Waste Services Ltd,01284500,,Trade Refuse Charges,Cleaning & Security,D21FD000044008,
http://statistics.data.gov.uk/id/local-authority/29UP,Tonbridge & Malling Borough Council,6/28/2023,0011046359/3,11046359, 60.90,Biffa Waste Services Ltd,01284500,,Trade Refuse Charges,Cleaning & Security,D21FD000044008,
http://statistics.data.gov.uk/id/local-authority/29UP,Tonbridge & Malling Borough Council,6/28/2023,0011046360/3,11046360, 60.90,Biffa Waste Services Ltd,01284500,,Trade Refuse Charges,Cleaning & Security,D21FD000044008,
http://statistics.data.gov.uk/id/local-authority/29UP,Tonbridge & Malling Borough Council,6/28/2023,0011046361/3,11046361, 210.84,Biffa Waste Services Ltd,01284500,,Trade Refuse Charges,Cleaning & Security,D21FD000044008,
http://statistics.data.gov.uk/id/local-authority/29UP,Tonbridge & Malling Borough Council,6/28/2023,0011046362/3,11046362, 106.50,Biffa Waste Services Ltd,01284500,,Trade Refuse Charges,Cleaning & Security,D21FD000044008,
http://statistics.data.gov.uk/id/local-authority/29UP,Tonbridge & Malling Borough Council,6/28/2023,0011046363/3,11046363, 351.40,Biffa Waste Services Ltd,01284500,,Trade Refuse Charges,Cleaning & Security,D21FD000044008,
http://statistics.data.gov.uk/id/local-authority/29UP,Tonbridge & Malling Borough Council,6/28/2023,0011046365/3,11046365, 439.25,Biffa Waste Services Ltd,01284500,,Trade Refuse Charges,Cleaning & Security,D21FD000044008,
http://statistics.data.gov.uk/id/local-authority/29UP,Tonbridge & Malling Borough Council,6/28/2023,0011046368/3,11046368, 6232.84,Royal Mail,00086200,,Purchases,Mailsort Stock Account,K37BR000001002,
http://statistics.data.gov.uk/id/local-authority/29UP,Tonbridge & Malling Borough Council,6/28/2023,0011046368/4,11046368, 7.47,Royal Mail,00086200,,Purchases,Mailsort Stock Account,K37BR000001002,
http://statistics.data.gov.uk/id/local-authority/29UP,Tonbridge & Malling Borough Council,6/28/2023,0011046368/5,11046368, 4.20,Royal Mail,00086200,,Purchases,Mailsort Stock Account,K37BR000001002,
http://statistics.data.gov.uk/id/local-authority/29UP,Tonbridge & Malling Borough Council,6/28/2023,0011046369/3,11046369, 55.00,Royal Mail,00086200,,Postages - Business Reply,Electoral Registration,D31MF000045003,
http://statistics.data.gov.uk/id/local-authority/29UP,Tonbridge & Malling Borough Council,6/28/2023,0011046369/4,11046369, 8.70,Royal Mail,00086200,,Purchases,Business Reply Stock Account,K14AT000001002,
http://statistics.data.gov.uk/id/local-authority/29UP,Tonbridge & Malling Borough Council,6/28/2023,0011046370/3,11046370, 339.16,Countryside Art Ltd,01462400,,Licences,Ton Castle Council Chamber,D21FC000048011,
http://statistics.data.gov.uk/id/local-authority/29UP,Tonbridge & Malling Borough Council,6/28/2023,0011046371/3,11046371, 2734.18,KCS - KCC,00054200,,Gas,Buildings,D21FEDD1021003,
http://statistics.data.gov.uk/id/local-authority/29UP,Tonbridge & Malling Borough Council,6/28/2023,0011046372/3,11046372, 1200.66,KCS - KCC,00054200,,Gas,Buildings,D21FEDD6021003,
http://statistics.data.gov.uk/id/local-authority/29UP,Tonbridge & Malling Borough Council,6/28/2023,0011046373/3,11046373, 356.28,KCS - KCC,00054200,,Estate Management Charge,Land Review,D40PS000020400,
http://statistics.data.gov.uk/id/local-authority/29UP,Tonbridge & Malling Borough Council,6/28/2023,0011046374/3,11046374, 2379.85,Royal Mail,00086200,,Purchases,Mailsort Stock Account,K37BR000001002,
http://statistics.data.gov.uk/id/local-authority/29UP,Tonbridge & Malling Borough Council,6/28/2023,0011046374/4,11046374, 2.10,Royal Mail,00086200,,Purchases,Mailsort Stock Account,K37BR000001002,
http://statistics.data.gov.uk/id/local-authority/29UP,Tonbridge & Malling Borough Council,6/28/2023,0011046375/3,11046375, 2745.33,KCS - KCC,00054200,,Electricity,Buildings,D21FEDD6021002,
http://statistics.data.gov.uk/id/local-authority/29UP,Tonbridge & Malling Borough Council,6/28/2023,0011046376/3,11046376, 5252.63,KCS - KCC,00054200,,Electricity,Buildings,D21FEDD1021002,
http://statistics.data.gov.uk/id/local-authority/29UP,Tonbridge & Malling Borough Council,6/28/2023,0011046377/3,11046377, 3034.04,KCS - KCC,00054200,,Electricity,Buildings,D21FEDD5021002,
http://statistics.data.gov.uk/id/local-authority/29UP,Tonbridge & Malling Borough Council,6/28/2023,0011046378/3,11046378, 1349.26,Royal Mail,00086200,,Purchases,Mailsort Stock Account,K37BR000001002,
http://statistics.data.gov.uk/id/local-authority/29UP,Tonbridge & Malling Borough Council,6/28/2023,0011046378/4,11046378, 4.98,Royal Mail,00086200,,Purchases,Mailsort Stock Account,K37BR000001002,
http://statistics.data.gov.uk/id/local-authority/29UP,Tonbridge & Malling Borough Council,6/28/2023,0011046379/3,11046379, 36.78,Royal Mail,00086200,,Postages - Business Reply,Electoral Registration,D31MF000045003,
http://statistics.data.gov.uk/id/local-authority/29UP,Tonbridge & Malling Borough Council,6/28/2023,0011046379/4,11046379, 23.44,Royal Mail,00086200,,Purchases,Business Reply Stock Account,K14AT000001002,
http://statistics.data.gov.uk/id/local-authority/29UP,Tonbridge & Malling Borough Council,6/28/2023,0011046380/3,11046380, 76.00,Spy Alarms Ltd,01608800,,BRREP Servicing-IntruderAlarm,Gibson Building West,M15KBP20001939,
http://statistics.data.gov.uk/id/local-authority/29UP,Tonbridge & Malling Borough Council,6/28/2023,0011046381/3,11046381, 110.00,Spy Alarms Ltd,01608800,,BRREP Servicing-IntruderAlarm,Gibson Building West,M15KBP20001939,
http://statistics.data.gov.uk/id/local-authority/29UP,Tonbridge & Malling Borough Council,6/28/2023,0011046382/3,11046382, 4.00,Spy Alarms Ltd,01608800,,BRREP Servicing-IntruderAlarm,Gibson Building West,M15KBP20001939,
http://statistics.data.gov.uk/id/local-authority/29UP,Tonbridge & Malling Borough Council,6/28/2023,0011046384/3,11046384, 1507.52,The Oyster Partnership,01196400,,Temporary Staff,Admin & Prop Sals&Overheads,D01AADA1111300,
http://statistics.data.gov.uk/id/local-authority/29UP,Tonbridge & Malling Borough Council,6/28/2023,0011046385/3,11046385, 266.67,East Malling & Larkfield Parish Council,00030200,,Rents,Conduct of Elections,D31MG000022001,
http://statistics.data.gov.uk/id/local-authority/29UP,Tonbridge & Malling Borough Council,6/28/2023,0011046386/1,11046386, 393.37,Scottish Water Business Stream Ltd,01641100,,Estate Management Charge,Land Review,D40PS000020400,
http://statistics.data.gov.uk/id/local-authority/29UP,Tonbridge & Malling Borough Council,6/28/2023,0011046387/3,11046387, 105.00,Triple S Lift Services,01344900,,BRREP Servicing - lifts,Gibson Building East,M15KGP20001930,
http://statistics.data.gov.uk/id/local-authority/29UP,Tonbridge & Malling Borough Council,6/28/2023,0011046388/3,11046388, 340.00,G C Industrial Heating Services,00578100,,BRREP Plant renewals,Angel Centre,M15HAP20001909,
http://statistics.data.gov.uk/id/local-authority/29UP,Tonbridge & Malling Borough Council,6/28/2023,0011046389/3,11046389, 262.23,ProMinent Fluid Controls (UK) Ltd,00080800,,BRREP Plant renewals,Larkfield Leisure Centre,M15HDP20001909,
http://statistics.data.gov.uk/id/local-authority/29UP,Tonbridge & Malling Borough Council,6/28/2023,0011046390/3,11046390, 175.00,BML Building Services Ltd,01505000,,BRREP Resp - Vandal / Break-In,Angel Centre,M15HAP50001998,
http://statistics.data.gov.uk/id/local-authority/29UP,Tonbridge & Malling Borough Council,6/28/2023,0011046391/3,11046391, 97.50,NLC Nova Lift Company Ltd,01735600,,BRREP Servicing - lifts,Leis Man Poult Wood Golf Centr,M15HEP20001930,
http://statistics.data.gov.uk/id/local-authority/29UP,Tonbridge & Malling Borough Council,6/28/2023,0011046392/3,11046392, 292.50,NLC Nova Lift Company Ltd,01735600,,BRREP Servicing - lifts,Leis Man Poult Wood Golf Centr,M15HEP20001930,
http://statistics.data.gov.uk/id/local-authority/29UP,Tonbridge & Malling Borough Council,6/28/2023,0011046393/3,11046393, 1217.80,Sellick Partnership Group Limited,01336800,,Temporary Staff,Legal Sals&Overheads,D01ARDR0011300,
http://statistics.data.gov.uk/id/local-authority/29UP,Tonbridge & Malling Borough Council,6/28/2023,0011046394/3,11046394, 1204.40,Sellick Partnership Group Limited,01336800,,Temporary Staff,Legal Sals&Overheads,D01ARDR0011300,
http://statistics.data.gov.uk/id/local-authority/29UP,Tonbridge & Malling Borough Council,6/28/2023,0011046395/1,11046395, 95.00,Weddle and Co,00714900,,Other Expenses,Mayoral & Other Member Support,D29LX000048010,110070265
http://statistics.data.gov.uk/id/local-authority/29UP,Tonbridge & Malling Borough Council,6/28/2023,0011046396/1,11046396, 687.50,The Morton Partnership,01896600,,BRREP General Maintenance,Tonbridge Castle Gatehouse,M15HKP10001900,110070285
http://statistics.data.gov.uk/id/local-authority/29UP,Tonbridge & Malling Borough Council,6/28/2023,0011046397/1,11046397, 438.00,Coloursped Services Ltd,01806600,,Maintenance - General,Printing,D22GA000040135,110070295
http://statistics.data.gov.uk/id/local-authority/29UP,Tonbridge & Malling Borough Council,6/28/2023,0011046398/1,11046398, 1295.00,SAS Energy,01856200,,Contract Payments,LLC Photovoltaic System,P05LR000009904,110070204
http://statistics.data.gov.uk/id/local-authority/29UP,Tonbridge & Malling Borough Council,6/28/2023,0011046399/1,11046399, 1058.00,Spy Alarms Ltd,01608800,,BRREP Servicing-IntruderAlarm,Gibson Building West,M15KBP20001939,110070180
http://statistics.data.gov.uk/id/local-authority/29UP,Tonbridge & Malling Borough Council,6/28/2023,0011046400/3,11046400, 100.00,BML Building Services Ltd,01505000,,BRREP Window/door repairs,PC - General,M15JAP20001919,
http://statistics.data.gov.uk/id/local-authority/29UP,Tonbridge & Malling Borough Council,6/28/2023,0011046401/1,11046401, 110.00,Triple S Lift Services,01344900,,BRREP Servicing - lifts,Angel Centre,M15HAP20001930,110069754
http://statistics.data.gov.uk/id/local-authority/29UP,Tonbridge & Malling Borough Council,6/28/2023,0011046402/1,11046402, 1250.00,Heritage Unlimited,01900600,,Professional Fees,Tonbridge Castle Gatehouse,B40TG000044001,110070250
http://statistics.data.gov.uk/id/local-authority/29UP,Tonbridge & Malling Borough Council,6/28/2023,0011046403/1,11046403, 1000.00,Spy Alarms Ltd,01608800,,BRREP Servicing-IntruderAlarm,Leybourne Lakes Country Park,M15HLP20001939,110070315
http://statistics.data.gov.uk/id/local-authority/29UP,Tonbridge & Malling Borough Council,6/28/2023,0011046405/1,11046405, 255.00,GreenFish Consulting part of JCML Consul,01627700,,BRREP Response - General,Ton Sportsgrnd Bldgs / Toilets,M15HCP50001997,110070239
http://statistics.data.gov.uk/id/local-authority/29UP,Tonbridge & Malling Borough Council,6/28/2023,0011046405/2,11046405, 365.00,GreenFish Consulting part of JCML Consul,01627700,,BRREP Response - General,Tonbridge Farm Pavillion,M15HGP50001997,110070239
http://statistics.data.gov.uk/id/local-authority/29UP,Tonbridge & Malling Borough Council,6/28/2023,0011046405/3,11046405, 225.00,GreenFish Consulting part of JCML Consul,01627700,,BRREP Response - General,Tonbridge Cemetery,M15HJP50001997,110070239
http://statistics.data.gov.uk/id/local-authority/29UP,Tonbridge & Malling Borough Council,6/28/2023,0011046406/1,11046406, 375.00,BML Building Services Ltd,01505000,,BRREP Response - General,Larkfield Leisure Centre,M15HDP50001997,110070256
http://statistics.data.gov.uk/id/local-authority/29UP,Tonbridge & Malling Borough Council,6/28/2023,0011046408/1,11046408, 3428.93,Coolburn Air Conditioning Ltd,01137900,,BRREP Servicing - air handling,Larkfield Leisure Centre,M15HDP20001936,110070189
http://statistics.data.gov.uk/id/local-authority/29UP,Tonbridge & Malling Borough Council,6/28/2023,0011046409/1,11046409, 1268.00,Coolburn Air Conditioning Ltd,01137900,,BRREP Servicing - air handling,Larkfield Leisure Centre,M15HDP20001936,110070188
http://statistics.data.gov.uk/id/local-authority/29UP,Tonbridge & Malling Borough Council,6/28/2023,0011046410/1,11046410, 720.00,G C Industrial Heating Services,00578100,,BRREP Servicing - boilers,Tonbridge Swimming Pool,M15HBP20001929,110070221
http://statistics.data.gov.uk/id/local-authority/29UP,Tonbridge & Malling Borough Council,6/28/2023,0011046411/1,11046411, 6472.00,H20 Servicing Limited,00888800,808041553,BRREP Pool tile repairs,Tonbridge Swimming Pool,M15HBP20001906,110070185
http://statistics.data.gov.uk/id/local-authority/29UP,Tonbridge & Malling Borough Council,6/28/2023,0011046412/1,11046412, 336.00,Hadene Engineering Ltd,00041900,,BRREP Gas Soundness Test,Tonbridge Swimming Pool,M15HBP30001994,110070207
http://statistics.data.gov.uk/id/local-authority/29UP,Tonbridge & Malling Borough Council,6/28/2023,0011046413/1,11046413, 100.00,BML Building Services Ltd,01505000,,BRREP General Maintenance,Tonbridge Castle Gatehouse,M15HKP10001900,110070108
http://statistics.data.gov.uk/id/local-authority/29UP,Tonbridge & Malling Borough Council,6/28/2023,0011046414/1,11046414, 450.00,BML Building Services Ltd,01505000,,BRREP Response - General,Land Review,M15MAP50001997,110070249
http://statistics.data.gov.uk/id/local-authority/29UP,Tonbridge & Malling Borough Council,6/28/2023,0011046415/1,11046415, 687.00,Loxton Installations Ltd,01278800,,BRREP IEE Testing,Tonbridge Castle / CAB,M15KFP30001991,110070227
http://statistics.data.gov.uk/id/local-authority/29UP,Tonbridge & Malling Borough Council,6/28/2023,0011046416/1,11046416, 333.00,Loxton Installations Ltd,01278800,,Repairs & Mtce to Buildings,Homelessness,C01AATNHS20101,110070231
http://statistics.data.gov.uk/id/local-authority/29UP,Tonbridge & Malling Borough Council,6/28/2023,0011046417/1,11046417, 146.00,Loxton Installations Ltd,01278800,,BRREP Response - General,Larkfield Leisure Centre,M15HDP50001997,110070230
http://statistics.data.gov.uk/id/local-authority/29UP,Tonbridge & Malling Borough Council,6/28/2023,0011046418/1,11046418, 438.00,Loxton Installations Ltd,01278800,,BRREP Response - General,Leis Man Poult Wood Golf Centr,M15HEP50001997,110070228
http://statistics.data.gov.uk/id/local-authority/29UP,Tonbridge & Malling Borough Council,6/28/2023,0011046418/2,11046418, 150.00,Loxton Installations Ltd,01278800,,BRREP Response - General,Pleasure Grounds & Open Spaces,M15HHP50001997,110070228
http://statistics.data.gov.uk/id/local-authority/29UP,Tonbridge & Malling Borough Council,6/28/2023,0011046419/1,11046419, 174.00,Loxton Installations Ltd,01278800,,BRREP Response - General,Larkfield Leisure Centre,M15HDP50001997,110070229
http://statistics.data.gov.uk/id/local-authority/29UP,Tonbridge & Malling Borough Council,6/28/2023,0011046420/1,11046420, 422.00,NKM Fire Protection Ltd,01784600,,BRREP Servicing - FireAlarmSys,Tonbridge Swimming Pool,M15HBP20001937,110070270
http://statistics.data.gov.uk/id/local-authority/29UP,Tonbridge & Malling Borough Council,6/28/2023,0011046421/1,11046421, 382.00,NKM Fire Protection Ltd,01784600,,BRREP Servicing - FireAlarmSys,Tonbridge Swimming Pool,M15HBP20001937,110070113
http://statistics.data.gov.uk/id/local-authority/29UP,Tonbridge & Malling Borough Council,6/28/2023,0011046422/1,11046422, 110.00,NKM Fire Protection Ltd,01784600,,BRREP Servicing - FireAlarmSys,Tonbridge Swimming Pool,M15HBP20001937,110069626
http://statistics.data.gov.uk/id/local-authority/29UP,Tonbridge & Malling Borough Council,6/28/2023,0011046423/1,11046423, 100.00,BML Building Services Ltd,01505000,,BRREP Response - General,PC - General,M15JAP50001997,110070292
http://statistics.data.gov.uk/id/local-authority/29UP,Tonbridge & Malling Borough Council,6/28/2023,0011046424/1,11046424, 425.00,PV Environmental Surveys,00987200,,BRREP Asbestos monitoring,Shops & Maisonettes,M15NAP30001993,110070160
http://statistics.data.gov.uk/id/local-authority/29UP,Tonbridge & Malling Borough Council,6/28/2023,0011046425/1,11046425, 2937.00,Monitor Pest Control Ltd,01476700,,BRREP Response - General,Tonbridge Cemetery,M15HJP50001997,110070225
http://statistics.data.gov.uk/id/local-authority/29UP,Tonbridge & Malling Borough Council,6/28/2023,0011046426/1,11046426, 395.00,Southern Lightning Engineers Ltd,00094000,,BRREP Servicing-Lightning Prot,Tonbridge Castle Gatehouse,M15HKP20001942,110070274
http://statistics.data.gov.uk/id/local-authority/29UP,Tonbridge & Malling Borough Council,6/28/2023,0011046427/1,11046427, 1052.00,BML Building Services Ltd,01505000,,BRREP Response - General,Gibson Building East,M15KGP50001997,110070301
http://statistics.data.gov.uk/id/local-authority/29UP,Tonbridge & Malling Borough Council,6/28/2023,0011046428/1,11046428, 340.00,G C Industrial Heating Services,00578100,,BRREP Response - General,Larkfield Leisure Centre,M15HDP50001997,110070302
http://statistics.data.gov.uk/id/local-authority/29UP,Tonbridge & Malling Borough Council,6/28/2023,0011046429/1,11046429, 1089.00,Learnd UK,01226700,,BRREP BMS System Mntce/Upgrade,Tonbridge Swimming Pool,M15HBP20001912,110069930
http://statistics.data.gov.uk/id/local-authority/29UP,Tonbridge & Malling Borough Council,6/28/2023,0011046430/1,11046430, 778.66,Marine And Industrial Pump Services,00062800,662127842,BRREP Servicing - Heating Syst,Larkfield Leisure Centre,M15HDP20001934,110070275
http://statistics.data.gov.uk/id/local-authority/29UP,Tonbridge & Malling Borough Council,6/28/2023,0011046431/1,11046431, 3600.00,Involve Kent,01380500,,Citizens Advice Bureau Grants,Grants & Payments to CAB,D37PB000047004,
http://statistics.data.gov.uk/id/local-authority/29UP,Tonbridge & Malling Borough Council,6/28/2023,0011046432/1,11046432, 2800.00,JB Carpentry - J Baker,01878900,,BRREP Window/door repairs,Larkfield Leisure Centre,M15HDP20001919,110070314
http://statistics.data.gov.uk/id/local-authority/29UP,Tonbridge & Malling Borough Council,6/28/2023,0011046433/1,11046433, 4995.00,Frontline Data,01375000,,BRREP Licence Fees - app list,Kings Hill Offices - Ext Areas,M15KAP20001977,110070318
http://statistics.data.gov.uk/id/local-authority/29UP,Tonbridge & Malling Borough Council,6/28/2023,0011046434/1,11046434, 250.00,The new Telegraph Club,01718400,,Rents,Conduct of Elections,D31MG000022001,
http://statistics.data.gov.uk/id/local-authority/29UP,Tonbridge & Malling Borough Council,6/28/2023,0011046435/1,11046435, 822.00,Spy Alarms Ltd,01608800,,BRREP Servicing-IntruderAlarm,Leybourne Lakes Country Park,M15HLP20001939,110070316
http://statistics.data.gov.uk/id/local-authority/29UP,Tonbridge & Malling Borough Council,6/28/2023,0011046436/1,11046436, 190.00,Loxton Installations Ltd,01278800,,BRREP Response - General,Gibson Building West,M15KBP50001997,110070232
http://statistics.data.gov.uk/id/local-authority/29UP,Tonbridge & Malling Borough Council,6/28/2023,0012008764/1,12008764, 18414.00,Phoenix Software Ltd,00077400,755349015,Software Hire & Support,Information Technology,D27KD000044059,410032421
http://statistics.data.gov.uk/id/local-authority/29UP,Tonbridge & Malling Borough Council,6/28/2023,0012008764/2,12008764, 16848.00,Phoenix Software Ltd,00077400,755349015,Software Hire & Support,Information Technology,D27KD000044059,410032421
http://statistics.data.gov.uk/id/local-authority/29UP,Tonbridge & Malling Borough Council,6/28/2023,0012008764/3,12008764, 3312.00,Phoenix Software Ltd,00077400,755349015,Software Hire & Support,Information Technology,D27KD000044059,410032421
http://statistics.data.gov.uk/id/local-authority/29UP,Tonbridge & Malling Borough Council,6/28/2023,0021038628/1,21038628, 44.99,KCS Education/CSG Global Education Ltd,01897200,408845925,Purchases,Haysden Country Park,B22LC000040101,210057211
http://statistics.data.gov.uk/id/local-authority/29UP,Tonbridge & Malling Borough Council,6/28/2023,0021038629/1,21038629, 4488.00,Gymnova ,01666800,,Initial Furniture & Equipment,Capital Renewals Leisure,P05KGBC0209906,210057207
http://statistics.data.gov.uk/id/local-authority/29UP,Tonbridge & Malling Borough Council,6/28/2023,0021038630/1,21038630, 5621.00,Gymnova ,01666800,,Initial Furniture & Equipment,Capital Renewals Leisure,P05KGBC0209906,210057206
http://statistics.data.gov.uk/id/local-authority/29UP,Tonbridge & Malling Borough Council,6/28/2023,0021038631/1,21038631, 317.00,Diocese of Rochester,01786500,,Contract Payments,Ton Cemetery Memorial Safety,P05KV000009904,
http://statistics.data.gov.uk/id/local-authority/29UP,Tonbridge & Malling Borough Council,6/28/2023,0021038631/2,21038631, 317.00,Diocese of Rochester,01786500,,Contract Payments,Ton Cemetery Memorial Safety,P05KV000009904,
http://statistics.data.gov.uk/id/local-authority/29UP,Tonbridge & Malling Borough Council,6/28/2023,0021038632/1,21038632, 175.00,SWS Countryside & Landscape,01567200,,Health & Safety - Trees,Countryside/Woodland Mgt,B22LG000044045,
http://statistics.data.gov.uk/id/local-authority/29UP,Tonbridge & Malling Borough Council,6/28/2023,0021038633/1,21038633, 600.00,SWS Countryside & Landscape,01567200,,Health & Safety - Trees,Countryside/Woodland Mgt,B22LG000044045,210057172
http://statistics.data.gov.uk/id/local-authority/29UP,Tonbridge & Malling Borough Council,6/28/2023,0021038634/1,21038634, 150.00,SWS Countryside & Landscape,01567200,,Maintenance of Grounds,Haysden Country Park,B22LC000020402,310043041
http://statistics.data.gov.uk/id/local-authority/29UP,Tonbridge & Malling Borough Council,6/28/2023,0021038635/1,21038635, 500.00,SWS Countryside & Landscape,01567200,,Health & Safety - Trees,Countryside/Woodland Mgt,B22LG000044045,
http://statistics.data.gov.uk/id/local-authority/29UP,Tonbridge & Malling Borough Council,6/28/2023,0021038636/1,21038636, 700.00,SWS Countryside & Landscape,01567200,,Maintenance of Grounds,Open Spaces & Amenity Areas,B22LE000020402,310043040
http://statistics.data.gov.uk/id/local-authority/29UP,Tonbridge & Malling Borough Council,6/28/2023,0021038637/1,21038637, 160.44,B&Q/Screwfix Direct(TradeUKAccount),00141300,,Maintenance of Grounds,Haysden Country Park,B22LC000020402,
http://statistics.data.gov.uk/id/local-authority/29UP,Tonbridge & Malling Borough Council,6/28/2023,0021038638/3,21038638, 61.51,B&Q/Screwfix Direct(TradeUKAccount),00141300,,Maintenance of Grounds,Haysden Country Park,B22LC000020402,
http://statistics.data.gov.uk/id/local-authority/29UP,Tonbridge & Malling Borough Council,6/28/2023,0021038639/1,21038639, 2445.00,SWS Countryside & Landscape,01567200,,Other Expenses,Community Group Funding,P05KS000009908,210057215
http://statistics.data.gov.uk/id/local-authority/29UP,Tonbridge & Malling Borough Council,6/28/2023,0021038640/3,21038640, 300.00,SWS Countryside & Landscape,01567200,,Health & Safety - Trees,Countryside/Woodland Mgt,B22LG000044045,
http://statistics.data.gov.uk/id/local-authority/29UP,Tonbridge & Malling Borough Council,6/28/2023,0021038641/1,21038641, 87.96,KCS Education/CSG Global Education Ltd,01897200,408845925,Purchases,Haysden Country Park,B22LC000040101,210057211
http://statistics.data.gov.uk/id/local-authority/29UP,Tonbridge & Malling Borough Council,6/28/2023,0021038642/1,21038642, 118.32,Greenham Trading Ltd,00127900,745138823,Purchases,Haysden Country Park,B22LC000040101,210057265
http://statistics.data.gov.uk/id/local-authority/29UP,Tonbridge & Malling Borough Council,6/28/2023,0021038643/1,21038643, 125.00,Flash Mobile Welding Services Ltd,01189200,,Maintenance of Play Equipment,Open Spaces & Amenity Areas,B22LE000020503,210057286
http://statistics.data.gov.uk/id/local-authority/29UP,Tonbridge & Malling Borough Council,6/28/2023,0021038644/1,21038644, 245.00,Flash Mobile Welding Services Ltd,01189200,,Maintenance of Grounds,Open Spaces & Amenity Areas,B22LE000020402,210057281
http://statistics.data.gov.uk/id/local-authority/29UP,Tonbridge & Malling Borough Council,6/28/2023,0021038645/1,21038645, 1237.50,Landscape Services Ltd,00057600,,Health & Safety - Trees,Countryside/Woodland Mgt,B22LG000044045,210057272
http://statistics.data.gov.uk/id/local-authority/29UP,Tonbridge & Malling Borough Council,6/28/2023,0021038646/1,21038646, 407.28,Landscape Services Ltd,00057600,,Maintenance of Grounds,Sports Grounds,B13ET000020402,210057258
http://statistics.data.gov.uk/id/local-authority/29UP,Tonbridge & Malling Borough Council,6/28/2023,0022027858/3,22027858, 3055.00,Centennial Property Ltd,01901000,,Temporary Accommodation,Homelessness,C01AA000044051,
http://statistics.data.gov.uk/id/local-authority/29UP,Tonbridge & Malling Borough Council,6/28/2023,0022027859/3,22027859, 4230.00,Centennial Property Ltd,01901000,,Temporary Accommodation,Homelessness,C01AA000044051,
http://statistics.data.gov.uk/id/local-authority/29UP,Tonbridge & Malling Borough Council,6/28/2023,0022027869/3,22027869, 380.00,WRM Property Services,01878100,,Homelessness Reduction Initiat,Homelessness,C01AA000048019,
http://statistics.data.gov.uk/id/local-authority/29UP,Tonbridge & Malling Borough Council,6/28/2023,0022027870/3,22027870, 3798.90,Ward Security LTD,01490000,,Dog Warden,Street Scene,H23SD000044100,
http://statistics.data.gov.uk/id/local-authority/29UP,Tonbridge & Malling Borough Council,6/28/2023,0022027871/1,22027871, 1701.00,Ricardo- AEA- Ltd,00445700,,General,Environmental Protection,H32SN000054012,220003351
http://statistics.data.gov.uk/id/local-authority/29UP,Tonbridge & Malling Borough Council,6/28/2023,0022027872/1,22027872, 50.00,BML Building Services Ltd,01505000,,Repairs & Mtce to Buildings,Homelessness,C01AATNPR20101,220003359
http://statistics.data.gov.uk/id/local-authority/29UP,Tonbridge & Malling Borough Council,6/28/2023,0022027873/3,22027873, 1298.46,Tunbridge Wells Borough Council,00844600,,Conservation,Conservation,A01AG000056002,
http://statistics.data.gov.uk/id/local-authority/29UP,Tonbridge & Malling Borough Council,6/28/2023,0022027874/3,22027874, 1225.00,Countrystyle Group,00835900,781981681,Collection of Card,Dry Recycling,H34SR000054008,
http://statistics.data.gov.uk/id/local-authority/29UP,Tonbridge & Malling Borough Council,6/28/2023,0022027875/1,22027875, 18780.00,Coldwell & Shawyer Ltd,01740300,,Other Expenses,Disabled Facilities Grant Mand,P03AC000009908,
http://statistics.data.gov.uk/id/local-authority/29UP,Tonbridge & Malling Borough Council,6/28/2023,0022027876/1,22027876, 58.00,Streamline (Kent) Limited,01043100,,Public Transport,Homelessness,C01AA000033001,
http://statistics.data.gov.uk/id/local-authority/29UP,Tonbridge & Malling Borough Council,6/28/2023,0022027877/1,22027877, 284.97,British Gas Services LTD,01260000,,Electricity,Homelessness,C01AAMAUN21002,
http://statistics.data.gov.uk/id/local-authority/29UP,Tonbridge & Malling Borough Council,6/28/2023,0022027877/2,22027877, 13.00,British Gas Services LTD,01260000,,Electricity,Homelessness,C01AAMAUN21002,
http://statistics.data.gov.uk/id/local-authority/29UP,Tonbridge & Malling Borough Council,6/28/2023,0031019525/3,31019525, 83.00,B&Q/Screwfix Direct(TradeUKAccount),00141300,,Purchases,Boro Highways & Emergency Oper,E01AA000040101,
http://statistics.data.gov.uk/id/local-authority/29UP,Tonbridge & Malling Borough Council,6/28/2023,0031019526/1,31019526, 1074.35,SKF Contractors Ltd,00092000,621768141,Premises Repairs & Maintenance,Parking On-Street,E10HD000020601,310043065
http://statistics.data.gov.uk/id/local-authority/29UP,Tonbridge & Malling Borough Council,6/28/2023,0031019529/1,31019529, 3657.50,SWS Countryside & Landscape,01567200,,Premises Repairs & Maintenance,Parking Off-Street,E10HAE00620601,310043027
http://statistics.data.gov.uk/id/local-authority/29UP,Tonbridge & Malling Borough Council,6/28/2023,0031019530/1,31019530, 950.00,Arnold & Court Ltd,01411300,,Bridge Maintenance,Open Spaces & Amenity Areas,B22LE000020505,210057280
http://statistics.data.gov.uk/id/local-authority/29UP,Tonbridge & Malling Borough Council,6/28/2023,0031019530/2,31019530, 775.00,Arnold & Court Ltd,01411300,,Bridge Maintenance,Open Spaces & Amenity Areas,B22LE000020505,210057280
http://statistics.data.gov.uk/id/local-authority/29UP,Tonbridge & Malling Borough Council,6/28/2023,0031019530/3,31019530, 2400.00,Arnold & Court Ltd,01411300,,Bridge Maintenance,Open Spaces & Amenity Areas,B22LE000020505,210057280
http://statistics.data.gov.uk/id/local-authority/29UP,Tonbridge & Malling Borough Council,6/28/2023,0031019531/1,31019531, 900.00,Arnold & Court Ltd,01411300,,Bridge Maintenance,Open Spaces & Amenity Areas,B22LE000020505,210057233
http://statistics.data.gov.uk/id/local-authority/29UP,Tonbridge & Malling Borough Council,6/28/2023,0031019532/1,31019532, 500.00,Arnold & Court Ltd,01411300,,Sandbags,Civil Contingencies,D33NA000040128,310043025
http://statistics.data.gov.uk/id/local-authority/29UP,Tonbridge & Malling Borough Council,6/28/2023,0031019533/1,31019533, 400.00,Arnold & Court Ltd,01411300,,Contract Payments,Boro Drainage & Land Drainage,E20MA000054001,310043003
http://statistics.data.gov.uk/id/local-authority/29UP,Tonbridge & Malling Borough Council,6/28/2023,0032010282/1,32010282, 200.00,P K Saunders Electrical Ltd,01900800,,Competent Persons Schemes,Building Control,A01AD000048116,
http://statistics.data.gov.uk/id/local-authority/29UP,Tonbridge & Malling Borough Council,6/28/2023,0032010283/1,32010283, 139.23,KM Media Group Ltd,00053900,,Advertising General,Development Management,A01ABZ99944216,320003517
http://statistics.data.gov.uk/id/local-authority/29UP,Tonbridge & Malling Borough Council,6/28/2023,0032010284/1,32010284, 235.62,KM Media Group Ltd,00053900,,Advertising General,Development Management,A01ABZ99944216,320003509
http://statistics.data.gov.uk/id/local-authority/29UP,Tonbridge & Malling Borough Council,6/28/2023,0032010286/3,32010286, 1376.00,Carrington West Limited,01844500,,Temporary Staff,Planning Sals&Overheads,D01AJDJ0111300,
http://statistics.data.gov.uk/id/local-authority/29UP,Tonbridge & Malling Borough Council,6/28/2023,0032010287/3,32010287, 1376.00,Carrington West Limited,01844500,,Temporary Staff,Planning Sals&Overheads,D01AJDJ0111300,
http://statistics.data.gov.uk/id/local-authority/29UP,Tonbridge & Malling Borough Council,6/28/2023,0032010288/1,32010288, 224.91,KM Media Group Ltd,00053900,,Advertising General,Development Management,A01ABZ99944216,320003518
http://statistics.data.gov.uk/id/local-authority/29UP,Tonbridge & Malling Borough Council,6/28/2023,0041035612/1,41035612, 10687.25,Grant Thornton UK LLP,01407400,,Audit Fees,Public Accountability,D29LR000044223,410032259
http://statistics.data.gov.uk/id/local-authority/29UP,Tonbridge & Malling Borough Council,6/28/2023,0041035613/3,41035613, 1081.14,Morgan Hunt UK Ltd,01086900,,Temporary Staff,Finance Sals&Overheads,D01AFDF1111300,
http://statistics.data.gov.uk/id/local-authority/29UP,Tonbridge & Malling Borough Council,6/28/2023,0041035614/3,41035614, 2960.56,Rundle & Co Ltd,00087200,,Bailiffs Commission,Local Revenue & NNDR Collect,D41QA000044075,
http://statistics.data.gov.uk/id/local-authority/29UP,Tonbridge & Malling Borough Council,6/28/2023,0041035634/1,41035634, 15.00,BNP Paribas,01360500,,Bank Charges,Banking Arrangements,D43QK000044222,
http://statistics.data.gov.uk/id/local-authority/29UP,Tonbridge & Malling Borough Council,6/28/2023,0041035635/1,41035635, 34200.00,REDACTED PERSONAL DATA,01904800,,Application & Appeals,Development Management,A01AB000044194,
http://statistics.data.gov.uk/id/local-authority/29UP,Tonbridge & Malling Borough Council,6/28/2023,0041035635/2,41035635, 14364.00,REDACTED PERSONAL DATA,01904800,,Application & Appeals,Development Management,A01AB000044194,
http://statistics.data.gov.uk/id/local-authority/29UP,Tonbridge & Malling Borough Council,6/28/2023,0041035635/3,41035635, 672.00,REDACTED PERSONAL DATA,01904800,,Application & Appeals,Development Management,A01AB000044194,
http://statistics.data.gov.uk/id/local-authority/29UP,Tonbridge & Malling Borough Council,6/28/2023,0051008821/1,51008821, 1500.00,Link Group (Treasury/Asset Services),00845100,,Ext Fees/General,Training,D10DCDM0013567,410032379
http://statistics.data.gov.uk/id/local-authority/29UP,Tonbridge & Malling Borough Council,6/28/2023,0051008822/1,51008822, 7.50,Commercial Services Kent Ltd,01655800,,Criminal Records Bureau Checks,Recruitment Expenses,D10DA000013180,510010639
http://statistics.data.gov.uk/id/local-authority/29UP,Tonbridge & Malling Borough Council,6/28/2023,0051008822/2,51008822, 18.00,Commercial Services Kent Ltd,01655800,,Criminal Records Bureau Checks,Recruitment Expenses,D10DA000013180,510010639
http://statistics.data.gov.uk/id/local-authority/29UP,Tonbridge & Malling Borough Council,6/28/2023,0051008823/1,51008823, 102.00,Maidstone & Tun Wells NHS Trust,00067100,,Occuptional Health Medicals,Health Care,D10DBDF1113311,
http://statistics.data.gov.uk/id/local-authority/29UP,Tonbridge & Malling Borough Council,6/28/2023,0051008823/2,51008823, 102.00,Maidstone & Tun Wells NHS Trust,00067100,,Occuptional Health Medicals,Health Care,D10DBDG0113311,
http://statistics.data.gov.uk/id/local-authority/29UP,Tonbridge & Malling Borough Council,6/28/2023,0051008823/3,51008823, 102.00,Maidstone & Tun Wells NHS Trust,00067100,,Occuptional Health Medicals,Health Care,D10DBDJ0113311,
http://statistics.data.gov.uk/id/local-authority/29UP,Tonbridge & Malling Borough Council,6/28/2023,0051008823/4,51008823, 148.00,Maidstone & Tun Wells NHS Trust,00067100,,Occuptional Health Medicals,Health Care,D10DBDJ0113311,
http://statistics.data.gov.uk/id/local-authority/29UP,Tonbridge & Malling Borough Council,6/28/2023,0051008823/5,51008823, 32.00,Maidstone & Tun Wells NHS Trust,00067100,,Occuptional Health Medicals,Health Care,D10DBDN0113311,
http://statistics.data.gov.uk/id/local-authority/29UP,Tonbridge & Malling Borough Council,6/28/2023,0051008823/6,51008823, 32.00,Maidstone & Tun Wells NHS Trust,00067100,,Occuptional Health Medicals,Health Care,D10DBDV0713311,
http://statistics.data.gov.uk/id/local-authority/29UP,Tonbridge & Malling Borough Council,6/28/2023,0051008824/1,51008824, 600.00,LABC Training,01180300,,Ext Fees/Prof & Tech,Training,D10DCDJ0213561,510010640
http://statistics.data.gov.uk/id/local-authority/29UP,Tonbridge & Malling Borough Council,6/29/2023,0041035638/1,41035638, 15.00,BNP Paribas,01360500,,Bank Charges,Banking Arrangements,D43QK000044222,
http://statistics.data.gov.uk/id/local-authority/29UP,Tonbridge & Malling Borough Council,6/30/2023,0041035641/1,41035641, 15.00,BNP Paribas,01360500,,Bank Charges,Banking Arrangements,D43QK000044222,
